Workbook

Sheet Startseite
D2: Hilfe zur Berechnung von Einkommen und Ausgaben eines
D3: nordmärkischen Lehens
D25: aktualisierte Version nach dem Hoftag 1028 BF / 35 Hal
A31: Stand: 2.3
A32: pruscht by Dennis F.
A33: befreit von Frank W.
A35: 1.6 -> 2.0 | B35: 2020-07-14
B36: - Formatierungen angepasst
B37: - Makro entfernt
B38: - Tabelle "Würfe" überprüft, Fehler beseitigt
B39: - Tabelle "Würfe" neu organisiert
B40: - Alle Parameter sind im Tabellenblatt "Tabellen" anpassbar
B41: - Rundung auf ganze Personen
B42: - Rundung von Beträgen einstellbar (D -> K)
B43: - Bei Verwendung der Census-Daten Berechnung des Bauernanteils unter Berücksichtigung der Zwerge
B44: - Anpassungen einiger Berechnungen an die Vorlage
A46: 1.6 -> 2.1 | B46: 2020-07-19
B47: - Makro für die automatische Würfelberechnung
A49: 2.1 -> 2.2 | B49: 2020-07-25
B50: - Anpassung einiger Begriffe an die nordmärkischen Vorgaben
B51: - Einbau von Edlengütern
A53: 2.2 -> 2.3 | B53: 2020-08-02
B54: - Neuberechnug der Ausgaben: Der Herzogentaler verringert die Einahmen, danach werden die Zehnte berechnet.

Sheet Würfe
E4: Hier sind vorab ein paar Würfelwürfe zu tätigen. Die Ergebnisse werden in der
E5: späteren Berechnung gebraucht. Würfelt einfach und tragt die Ergebnisse der Reihe nach hier ein :
C8: Würfel (W3) | D8: 3 | E8: Würfel (W3) | F8: 1
C9: Würfel (W3) | D9: 2 | E9: Würfel (W3) | F9: 1
C11: Würfel (W6) | D11: 3 | E11: Würfel (W6) | F11: 5
C12: Würfel (W6) | D12: 3
C14: Würfel (W10) | D14: 8 | E14: Würfel (W10) | F14: 9
C15: Würfel (W10) | D15: 8 | E15: Würfel (W10) | F15: 1
C17: Würfel (W20) | D17: 9 | E17: Würfel (W20) | F17: 18
C18: Würfel (W20) | D18: 16 | E18: Würfel (W20) | F18: 8
C19: Würfel (W20) | D19: 20 | E19: Würfel (W20) | F19: 18
C20: Würfel (W20) | D20: 2 | E20: Würfel (W20) | F20: 19
C21: Würfel (W20) | D21: 8 | E21: Würfel (W20) | F21: 11
C22: Würfel (W20) | D22: 16 | E22: Würfel (W20) | F22: 2
C23: Würfel (W20) | D23: 12 | E23: Würfel (W20) | F23: 10
C24: Würfel (W20) | D24: 6 | E24: Würfel (W20) | F24: 13
C25: Würfel (W20) | D25: 13 | E25: Würfel (W20) | F25: 6
C26: Würfel (W20) | D26: 6 | E26: Würfel (W20) | F26: 17
C27: Würfel (W20) | D27: 17 | E27: Würfel (W20) | F27: 12
C28: Würfel (W20) | D28: 20
D31: Zur Erklärung der folgenden Tabellen:
E33: Diese Felder sind Berechnungsfelder
E35: In diese Felder sollen Spielerangaben gemacht werden
E37: Das hier sind Ergebnisfelder

Sheet Allgemeines
B2: I. Allgemeines :
B4: Name der Lehens: | G4: =IF(_JN_Census=1,IFERROR(VLOOKUP(_Nr&"*",_CensusTab,2,FALSE),""),"") -> 
B5: Kennziffer :
B6: Lehensträger: | G6: =IF(_JN_Census=1,IFERROR(VLOOKUP(_Nr&"*",_CensusTab,3,FALSE),""),"") -> 
C7: TaW Staatskunst:
C8: TaW Feilschen:
C9: TaW Rechnen:
B11: Daten aus dem Census verwenden? | D11: 2 | G11: Hinweis :
B13: Handelt es sich um ein Edlen-, Junkergut, o.ä.? | D13: 2 | G13: Im Feld Bevölkerungszahl erscheint die
G14: nach den Regeln korrekt errechnete
B15: Stadt > 1000 Einwohner im Lehen? | D15: 2 | G15: Bevölkerung Eures Lehens, es kann
B16: Stadt > 4000 Einwohner im Lehen? | D16: 2 | G16: jedoch sein das die Zahl einem Baron
B17: Schiffbarer Fluss oder See im Lehen? | D17: 2 | G17: zu hoch ist. In diesem Fall ist die
B18: Führt eine Reichsstrasse durch das Lehen? | D18: 2 | G18: errechnete Zahl die maximal Ober-
B19: Führt eine wichtige Passstrasse durch das Lehen? | D19: 2 | G19: grenze und darf nach unten, aber
B20: Liegt das Lehen an einer Provinzgrenze? | D20: 2 | G20: nur nach unten angepaßt werden!
B22: geographische Region: | D22: 1 | G22: Alternativ können die Zahlen aus dem
B23: Zwischensumme: | D23: =IF(_JN_Census=1,"",ROUND(INDEX(_EinwReg_NM,_RegionDD)*CHOOSE(_JN_Edle,_EinwohnerEdle,1),0)) -> 1500 | G23: Census ausgewählt werden, diese
B24: Besiedlungstyp : | D24: 1 | G24: werden nicht modifiziert!
B25: Zwischensumme: | D25: =IF(_JN_Census=1,"",ROUND((_EinwohnerZS1+INDEX(_BesiedTypAusw,_BesiedDD)*CHOOSE(_JN_Edle,_EinwohnerEdle,1))*(1+INDEX(_EinwohnerMod,_BesiedDD,_W06_1)),0)) -> 1500 | G25: Es muss aber für die korrekten Ein-
B26: Zu-/Abschläge von der Kanzlei | G26: nahmen der Besiedlungstyp richtig
G27: gewählt werden!
B28: Bevölkerungszahl: | D28: =IF(_JN_Census=1, IFERROR(VLOOKUP(_Nr&"*",_CensusTab,6,FALSE),0),_EinwohnerZS2+_EinwohnerKanzl) -> 1500 | E28: Einw.
B30: Davon Bauern : | D30: =IFERROR(ROUND(_Einwohner*_BauernAnteil,0),0) -> 1200 | E30: Einw.
B32: Die Bauern verteilen sich wie folgt :
B33: Art: | C33: Im Lehen vorhanden: | D33: Anzahl Bewohner :
A34: 1 | B34: Kleiner Hof: | C34: =ROUND(_BauerKl/INDEX(_Hoftyp,7,A34),0) -> 48 | D34: =_AnzBauern-_BauerMi-_BauerGr-_BauerGu-_BauerHi-_BauerWa -> 480 | E34: Einw.
A35: 2 | B35: Mittlerer Hof: | C35: =ROUND(_BauerMi/INDEX(_Hoftyp,7,A35),0) -> 9 | D35: =ROUND(_AnzBauern*INDEX(_Hoftyp,_BesiedDD,A35),0) -> 180 | E35: Einw.
A36: 3 | B36: Großer Hof: | C36: =ROUND(_BauerGr/INDEX(_Hoftyp,7,A36),0) -> 2 | D36: =ROUND(_AnzBauern*INDEX(_Hoftyp,_BesiedDD,A36),0) -> 60 | E36: Einw.
A37: 4 | B37: Gutshof: | C37: =ROUND(_BauerGu/INDEX(_Hoftyp,7,A37),0) -> 1 | D37: =ROUND(_AnzBauern*INDEX(_Hoftyp,_BesiedDD,A37),0) -> 36 | E37: Einw.
A38: 5 | B38: Hirtenstellen: | C38: =ROUND(_BauerHi/INDEX(_Hoftyp,7,A38),0) -> 30 | D38: =ROUND(_AnzBauern*INDEX(_Hoftyp,_BesiedDD,A38),0) -> 300 | E38: Einw.
A39: 6 | B39: Waldbauernhof: | C39: =ROUND(_BauerWa/INDEX(_Hoftyp,7,A39),0) -> 14 | D39: =ROUND(_AnzBauern*INDEX(_Hoftyp,_BesiedDD,A39),0) -> 144 | E39: Einw.
B40: Kontrolle : | D40: =SUM(D34:D39) -> 1200 | E40: Einw.
B42: Hat der Lehenträger das Lehen unterbelehnt :
B43: Anzahl der Edlengüter im Lehen: | D43: 1

Sheet Einnahmen
B2: II. Einnahmen pro Jahr in Dukaten:
B4: a: | E4: e:
B5: Erträge der Höfe: | E5: Einkünfte der eigenen Domäne:
A6: 1 | B6: Kleiner Hof: | C6: =_AnzBauerKl*INDEX(_Hoftyp,9,A6) -> 720 | G6: =ROUND((_Einwohner/10-(_AnzEdel-1)*50)*(_W03_1+4),_RundGeld) -> 1050
A7: 2 | B7: Mittlerer Hof: | C7: =_AnzBauerMi*INDEX(_Hoftyp,9,A7) -> 540
A8: 3 | B8: Großer Hof: | C8: =_AnzBauerGr*INDEX(_Hoftyp,9,A8) -> 300
A9: 4 | B9: Gutshof: | C9: =_AnzBauerGu*INDEX(_Hoftyp,9,A9) -> 300 | E9: f:
A10: 5 | B10: Hirtenstellen: | C10: =_AnzBauerHi*INDEX(_Hoftyp,9,A10) -> 600 | E10: Bannergeld:
A11: 6 | B11: Waldbauernhof: | C11: =_AnzBauerWa*INDEX(_Hoftyp,9,A11) -> 980 | G11: =CHOOSE(_JN_Edle,0,ROUND((_Einwohner*2%+_AnzBauerGr+_AnzBauerGu)*4,_RundGeld)) -> 132
C12: =SUM(C6:C11) -> 3440
B14: b: | E14: g:
B15: Das Sterbegeld: | E15: Sonstige Steuern:
C16: =ROUND(_Einwohner/100*(_W20_1+_W20_2+_W20_3),_RundGeld) -> 645 | G16: =ROUND(_X_Faktor*CHOOSE(_JN_Edle,0.5,1)*_Einwohner*(100%-90%*_BauernAnteil)+(_TaW_Sk+_TaW_Feil+_TaW_Rechn)*(_W06_2+1)*10,_RundGeld) -> 420
B18: c: | E18: h:
B19: Weingeld: | E19: Zölle wenn Lehen an Provinzgrenze:
C20: =ROUND(_Einwohner/100*(_W20_4+_W20_5),_RundGeld) -> 420 | G20: =CHOOSE(_JN_Edle,0,ROUND(_X_Zoll*_Einwohner*(100%-90%*_BauernAnteil),_RundGeld)) -> 0
B22: d:
B23: Das Schongeld: | E23: Gesamte Einnahmen der Baronie
C24: =ROUND(_Einwohner/100*_W20_6,_RundGeld) -> 270 | E24: =_EinahmeBauer+_EinnahmeSterb+_EinnahmeWein+_EinnahmeSchon+_EinnahmeDom+_EinnahmeWehr+_EinnahmeSonst+_EinnahmeZoll -> 6377 | F24: Dukaten

Sheet Ausgaben
B2: III. Feste Ausgaben des Lehens pro Jahr in Dukaten:
B4: a. | F4: d.
B5: Der Herzogentaler: | F5: Tempelzehnt:
B6: (Einwohnerbasiert) | D6: =CHOOSE(_JN_Edle,0,ROUND(_Einwohner*_Herzogentaler,_RundGeld)) -> 1950 | H6: =ROUND(_Einnahmen*_ZehntTemp,_RundGeld) -> 638
B9: b. | F9: e.
B10: Lehensabgaben: | F10: Kredite:
B11: Grafenzehnt: | D11: =ROUND(_Einnahmen*_ZehntGraf*CHOOSE(_JN_Edle,2,1),_RundGeld) -> 638 | F11: Abtragung :
B12: Herzogenzehnt: | D12: =ROUND(_Einnahmen*_ZehntHerz*CHOOSE(_JN_Edle,2,1),_RundGeld) -> 638
D13: =SUM(D11:D12) -> 1276
B15: c.
B16: Zollabgaben:
B17: Grafenanteil: | D17: =ROUND(_EinnahmeZoll*_ZollGraf,_RundGeld) -> 0 | F17: Summe der festen Ausgaben
B18: Herzogenanteil: | D18: =ROUND(_EinnahmeZoll*_ZollHerz,_RundGeld) -> 0 | F18: =_AusgabeHerz+_AusgabeLehen+_AusgabeZoll+_AusgabeTemp+_AusgabeKredit -> 3864 | G18: Dukaten
D19: =SUM(D17:D18) -> 0

Sheet Unterhalt
B2: IV. laufende Unterhaltung des Lehens
B4: a. | F4: b.
B5: Burgen: | C5: Anzahl: | D5: Unterhaltung: | F5: Straßen: | G5: Anzahl Meilen: | H5: Unterhaltung:
A6: 1 | B6: große Burg | C6: 1 | D6: =ROUND((_AnzGrBurg-1)*INDEX(_UnterhaltListe,$A6)*_W03_2/10,_RundGeld) -> 0 | F6: Reichsstraße | H6: =ROUND((_W20_7+_W20_8+_W20_9+_W20_10)*_MeileRS/10,_RundGeld) -> 0
A7: 2 | B7: mittlere Burg | C7: 1 | D7: =ROUND((_AnzMiBurg-1)*INDEX(_UnterhaltListe,$A7)*_W03_2/10,_RundGeld) -> 0 | F7: Hauptstraße | H7: =ROUND((_W20_11+_W20_12)*_MeileHS/10,_RundGeld) -> 0
A8: 3 | B8: kleine Burg | C8: 1 | D8: =ROUND((_AnzKlBurg-1)*INDEX(_UnterhaltListe,$A8)*_W03_2/10,_RundGeld) -> 0 | F8: Nebenwege | H8: =ROUND((_W20_13)*_MeileNW/10,_RundGeld) -> 0
D9: =SUM(D6:D8) -> 0 | F9: Karrenwege | H9: =ROUND((_W10_1)*_MeileKW/10,_RundGeld) -> 0
H10: =SUM(H6:H9) -> 0
B12: c. | F12: d.
B13: Brücken: | C13: Anzahl Schritt: | D13: Unterhaltung: | F13: restliche Infrastruktur :
B14: Holzbrücke | D14: =ROUND((_W10_2+_W10_3)*_SchrittHBrü/10,_RundGeld) -> 0 | H14: =INDEX(_InfraListe,_BesiedDD) -> 204
B15: Steinrücke | D15: =ROUND((_W20_14+_W20_15)*_SchrittSBrü/10,_RundGeld) -> 0
B16: Fährschloß | D16: =ROUND((_W20_16+_W20_17)*_SchrittFährSchl/10,_RundGeld) -> 0 | F16: e.
B17: Fährschiff | D17: =ROUND((_W20_18+_W20_19+_W20_20)*_SchrittFähre/10,_RundGeld) -> 0 | F17: Dotierungen:
D18: =SUM(D14:D17) -> 0 | H18: =ROUND(_Einwohner/10*_W03_4,_RundGeld) -> 150
B20: f.
B21: Kosten für Personal:
B22: Art : | D22: Anzahl: | F22: Zusatzzahlungen: | G22: Kosten:
A23: 4 | B23: Verwalter, Hauptmann der Miliz, Hofmagus | D23: 1 | G23: =ROUND((_AnzP1-1)*INDEX(_UnterhaltListe,$A23)+F23,_RundGeld) -> 0
A24: 5 | B24: Haushofmeister, Wundarzt, Feldscher, Hauslehrer | D24: 1 | G24: =ROUND((_AnzP2-1)*INDEX(_UnterhaltListe,$A24)+F24,_RundGeld) -> 0
A25: 6 | B25: Waibel, Schreiber, Sekretär, Koch, Falkner | D25: 1 | G25: =ROUND((_AnzP3-1)*INDEX(_UnterhaltListe,$A25)+F25,_RundGeld) -> 0
A26: 7 | B26: Korporal, Jagdmeister, Stall- und Feldaufseher | D26: 1 | G26: =ROUND((_AnzP4-1)*INDEX(_UnterhaltListe,$A26)+F26,_RundGeld) -> 0
A27: 8 | B27: Büttel, Zöllner, Zofe, Diener | D27: 1 | G27: =ROUND((_AnzP5-1)*INDEX(_UnterhaltListe,$A27)+F27,_RundGeld) -> 0
A28: 9 | B28: Reitknecht | D28: 1 | G28: =ROUND((_AnzP6-1)*INDEX(_UnterhaltListe,$A28)+F28,_RundGeld) -> 0
A29: 10 | B29: Page | D29: 1 | G29: =ROUND((_AnzP7-1)*INDEX(_UnterhaltListe,$A29)+F29,_RundGeld) -> 0
B30: Nicht aufgeführte Berufe | D30: Anzahl: | E30: Kosten pro Person: | F30: Zusatzzahlungen:
D31: 1 | G31: =ROUND((_AnzP8-1)*E31+F31,_RundGeld) -> 0
D32: 1 | G32: =ROUND((_AnzP9-1)*E32+F32,_RundGeld) -> 0
D33: 1 | G33: =ROUND((_AnzP10-1)*E33+F33,_RundGeld) -> 0
G34: =SUM(G23:G33) -> 0
B35: g.
B36: Kosten für Tiere:
B37: Art : | D37: Anzahl: | F37: Zusatzzahlungen: | G37: Kosten:
A38: 11 | B38: Pferd (Warunker) | D38: 1 | G38: =ROUND((_AnzT1-1)*INDEX(_UnterhaltListe,$A38)+F38,_RundGeld) -> 0
A39: 12 | B39: Pferd (Elenviner Vollblut) | D39: 1 | G39: =ROUND((_AnzT2-1)*INDEX(_UnterhaltListe,$A39)+F39,_RundGeld) -> 0
A40: 13 | B40: Zugochse | D40: 1 | G40: =ROUND((_AnzT3-1)*INDEX(_UnterhaltListe,$A40)+F40,_RundGeld) -> 0
A41: 14 | B41: Maultier | D41: 1 | G41: =ROUND((_AnzT4-1)*INDEX(_UnterhaltListe,$A41)+F41,_RundGeld) -> 0
A42: 15 | B42: Muli | D42: 1 | G42: =ROUND((_AnzT5-1)*INDEX(_UnterhaltListe,$A42)+F42,_RundGeld) -> 0
A43: 16 | B43: Esel | D43: 1 | G43: =ROUND((_AnzT6-1)*INDEX(_UnterhaltListe,$A43)+F43,_RundGeld) -> 0
A44: 17 | B44: Wehrheimer Dogge | D44: 1 | G44: =ROUND((_AnzT7-1)*INDEX(_UnterhaltListe,$A44)+F44,_RundGeld) -> 0
A45: 18 | B45: ThorwalerWindhund | D45: 1 | G45: =ROUND((_AnzT8-1)*INDEX(_UnterhaltListe,$A45)+F45,_RundGeld) -> 0
B46: Nicht aufgeführte Tiere: | D46: Anzahl: | E46: Kosten pro Tier: | F46: Zusatzzahlungen:
D47: 1 | G47: =ROUND((_AnzT9-1)*E47+F47,_RundGeld) -> 0
D48: 1 | G48: =ROUND((_AnzT10-1)*E48+F48,_RundGeld) -> 0
D49: 1 | G49: =ROUND((_AnzT11-1)*E49+F49,_RundGeld) -> 0
G50: =SUM(G38:G49) -> 0
D53: Summe der Unterhaltskosten und Löhne:
D54: =_UntBurgen+_UntStr+_UntBrück+_UntInfra+_UntDot+_UntPerso+_UntTier -> 354 | E54: Dukaten

Sheet Bilanz
B2: V. Die Abschlußbilanz
C4: Einkünfte: | D4: =_Einnahmen -> 6377 | E4: Dukaten
B5: - | C5: Ausgaben: | D5: =_Ausgaben -> 3864 | E5: Dukaten
B6: - | C6: Unterhalt: | D6: =_Unterhalt -> 354 | E6: Dukaten
C8: Zwischenergebnbis: | D8: =D4-D5-D6 -> 2159 | E8: Dukaten
B10: - | C10: Rücklage | E10: Dukaten
B11: - | C11: Investitionen | E11: Dukaten
B12: - | C12: Privatschatulle | E12: Dukaten
B14: + | C14: Kredit | E14: Dukaten
B15: + | C15: Entnahme aus Rücklage | E15: Dukaten
C17: Ergebnis : | D17: =D8-D10-D11-D12+D14+D15 -> 2159 | E17: Dukaten | G17: =IF(D17<>0,"Achtung! Die Bilanz muss auf 0 aufgehen!","") -> Achtung! Die Bilanz muss auf 0 aufgehen!
B22: Stand der Rücklage : | E22: Dukaten
B24: Kreditverpflichtungen: | E24: Dukaten

Sheet Tabellen
A1: Ja/Nein | B1: Würfel | C1: Region | D1: Einwohner/Region | E1: Besiedlungstyp | F1: Auswirkungen Besiedlungstyp | G1: Modifikation Einwohner (_W06_1) | M1: Anteil Bauern | N1: Anteil Hoftyp | T1: Nachkomma Geld | U1: Nachbarschaft | Y1: Herzogen-taler (D) | Z1: Zehnte | AB1: Unterhalt | AE1: Infrastruktur | AF1: Einwohner Edlengut | AH1: Beschreibung der Würfel | AM1: Neu anzeigen?
G2: 1 | H2: 2 | I2: 3 | J2: 4 | K2: 5 | L2: 6 | N2: Klein | O2: Mittel | P2: Groß | Q2: Gut | R2: Hirten | S2: Waldbauer | U2: Bedingung | V2: Wert | W2: Faktor | X2: Ergebnis | Z2: Typ | AA2: Wert | AB2: Index | AC2: Typ | AD2: Wert | AH2: Würfel | AI2: akt. Wert | AJ2: Formel | AK2: Zelle | AM2: FALSE
A3: ja | B3: 0 | C3: Nördliches Gratenfels | D3: 1500 | E3: Ödlande | F3: 0 | G3: 0.1 | H3: 0.05 | I3: 0 | J3: -0.1 | K3: -0.2 | L3: -0.3 | M3: =M5*(100%-M7) -> 0.8 | N3: 0.4 | O3: 0.15 | P3: 0.05 | Q3: 0.03 | R3: 0.25 | S3: 0.12 | T3: 0 | U3: Basiswert | W3: 1 | X3: =1 -> 1 | Y3: 1.3 | Z3: Grafenzehnt | AA3: 0.1 | AB3: 1 | AC3: große Burg | AD3: 15000 | AE3: =_W20_21*_W20_22 -> 204 | AF3: 0.1 | AH3: _W03_1 | AI3: =_W03_1 -> 3 | AJ3: III.E | AK3: Einnahmen'!$G$6
A4: nein | B4: 1 | C4: Rest der Nordmarken | D4: 3800 | E4: Wildlande | F4: 200 | G4: 0.15 | H4: 0.05 | I4: 0 | J4: 0 | K4: -0.05 | L4: -0.15 | M4: Vorgabe | N4: 0.4 | O4: 0.15 | P4: 0.07 | Q4: 0.04 | R4: 0.14 | S4: 0.2 | U4: Stadt > 1000 | V4: =_JN_1000=1 -> FALSE | W4: 0.5 | X4: =IF(V4,W4,0) -> 0 | Z4: Herzogenzehnt | AA4: 0.1 | AB4: 2 | AC4: mittlere Burg | AD4: 8000 | AE4: =_W20_21*(_W20_22+_W10_4) -> 221 | AH4: _W03_2 | AI4: =_W03_2 -> 1 | AJ4: V.A | AK4: Unterhalt'!$K$6
B5: 2 | E5: Grenzungen | F5: 400 | G5: 0.2 | H5: 0.1 | I5: 0 | J5: 0 | K5: -0.05 | L5: -0.1 | M5: 0.8 | N5: 0.35 | O5: 0.23 | P5: 0.1 | Q5: 0.05 | R5: 0.12 | S5: 0.15 | U5: Stadt > 4000 | V5: =_JN_4000=1 -> FALSE | W5: 1 | X5: 0 | Z5: Tempelzehnt | AA5: 0.1 | AB5: 3 | AC5: kleine Burg | AD5: 4000 | AE5: =_W20_21*(_W20_22+_W20_23) -> 544 | AH5: _W03_3 | AI5: =_W03_3 -> 2 | AJ5: V.C | AK5: _InfraListe
B6: 3 | C6: Nördliche Baronien | D6: 1500 | E6: Mischlande | F6: 600 | G6: 0.2 | H6: 0.15 | I6: 0.1 | J6: 0 | K6: 0 | L6: -0.1 | M6: Anteil Zw. | N6: 0.3 | O6: 0.3 | P6: 0.15 | Q6: 0.07 | R6: 0.1 | S6: 0.08 | U6: Fluss/See | V6: =_JN_Fluss=1 -> FALSE | W6: 0.5 | X6: 0 | Z6: Grafenanteil Zoll | AA6: 0.25 | AB6: 4 | AC6: Verwalter | AD6: 250 | AE6: =_W20_21*(_W20_22+_W20_23+_W10_4) -> 561 | AH6: _W03_4 | AI6: =_W03_4 -> 1 | AJ6: V.E | AK6: Unterhalt'!$H$18
B7: 4 | C7: Mittelländische Baronien | D7: 3800 | E7: Wohlpflegende | F7: 800 | G7: 0.25 | H7: 0.15 | I7: 0.1 | J7: 0.05 | K7: 0 | L7: -0.1 | M7: =IF(_JN_Census=1,IFERROR(VLOOKUP(_Nr&"*",_CensusTab,7,FALSE),0),0) -> 0 | N7: 0.3 | O7: 0.3 | P7: 0.2 | Q7: 0.1 | R7: 0.05 | S7: 0.05 | U7: Besiedlungstyp | V7: =_BesiedDD>=5 -> FALSE | W7: 0.5 | X7: 0 | Z7: Herzogenanteil Zoll | AA7: 0.25 | AB7: 5 | AC7: Haushofmeister | AD7: 150 | AE7: =_W20_21*(+_W20_22+_W20_23)*_W03_3 -> 1088 | AH7: _W06_1 | AI7: =_W06_1 -> 3 | AJ7: II.C | AK7: Allgemeines'!$D$23
B8: 5 | C8: Südliche Baronien | D8: 5000 | E8: Kulturlande | F8: 1000 | G8: 0.3 | H8: 0.2 | I8: 0.1 | J8: 0.05 | K8: 0 | L8: -0.05 | N8: 0.3 | O8: 0.25 | P8: 0.25 | Q8: 0.15 | R8: 0.05 | S8: 0 | U8: Reichsstr. | V8: =_JN_Reich=1 -> FALSE | W8: 0.5 | X8: 0 | AB8: 6 | AC8: Waibel | AD8: 120 | AE8: =_W20_21*(+_W20_22+_W20_23)*_W06_3 -> 1632 | AH8: _W06_2 | AI8: =_W06_2 -> 5 | AJ8: III.G | AK8: Einnahmen'!$G$16
B9: 6 | M9: Bewohner | N9: 10 | O9: 20 | P9: 30 | Q9: 40 | R9: 10 | S9: 10 | U9: Passstr. | V9: =_JN_Pass=1 -> FALSE | W9: 0.5 | X9: 0 | AB9: 7 | AC9: Korporal | AD9: 80 | AH9: _W06_3 | AI9: =_W06_3 -> 3 | AJ9: V.C | AK9: _InfraListe
B10: 7 | M10: Land | N10: 4 | O10: 20 | P10: 70 | Q10: 120 | R10: 3 | S10: 3 | W10: X: | X10: =SUM(X3:X9) -> 1 | AB10: 8 | AC10: Büttel | AD10: 60 | AH10: _W10_1 | AI10: =_W10_1 -> 8 | AJ10: V.B | AK10: Unterhalt'!$H$9
B11: 8 | M11: Einnahmen | N11: 15 | O11: 60 | P11: 150 | Q11: 300 | R11: 20 | S11: 70 | U11: Grenze | V11: =_JN_Grenze=1 -> FALSE | W11: 0.5 | X11: =IF(V11,W11,0) -> 0 | AB11: 9 | AC11: Reitknecht | AD11: 50 | AH11: _W10_2 | AI11: =_W10_2 -> 9 | AJ11: V.B | AK11: Unterhalt'!$D$14
B12: 9 | AB12: 10 | AC12: Page | AD12: 30 | AH12: _W10_3 | AI12: =_W10_3 -> 8 | AJ12: V.B | AK12: Unterhalt'!$D$14
B13: 10 | AB13: 11 | AC13: Pferd (Warunker) | AD13: 40 | AH13: _W10_4 | AI13: =_W10_4 -> 1 | AJ13: V.C | AK13: _InfraListe
B14: 11 | AB14: 12 | AC14: Pferd (Elenviner Vollblut) | AD14: 80 | AH14: _W20_1 | AI14: =_W20_1 -> 9 | AJ14: III.B | AK14: Einnahmen'!$C$16
B15: 12 | AB15: 13 | AC15: Zugochse | AD15: 25 | AH15: _W20_2 | AI15: =_W20_2 -> 18 | AJ15: III.B | AK15: Einnahmen'!$C$16
B16: 13 | AB16: 14 | AC16: Maultier | AD16: 15 | AH16: _W20_3 | AI16: =_W20_3 -> 16 | AJ16: III.B | AK16: Einnahmen'!$C$16
B17: 14 | AB17: 15 | AC17: Muli | AD17: 15 | AH17: _W20_4 | AI17: =_W20_4 -> 8 | AJ17: III.C | AK17: Einnahmen'!$C$20
B18: 15 | AB18: 16 | AC18: Esel | AD18: 10 | AH18: _W20_5 | AI18: =_W20_5 -> 20 | AJ18: III.C | AK18: Einnahmen'!$C$20
B19: 16 | AB19: 17 | AC19: Wehrheimer Dogge | AD19: 30 | AH19: _W20_6 | AI19: =_W20_6 -> 18 | AJ19: III.D | AK19: Einnahmen'!$C$24
B20: 17 | AB20: 18 | AC20: ThorwalerWindhund | AD20: 10 | AH20: _W20_7 | AI20: =_W20_7 -> 2 | AJ20: V.B | AK20: Unterhalt'!$H$6
B21: 18 | AH21: _W20_8 | AI21: =_W20_8 -> 19 | AJ21: V.B | AK21: Unterhalt'!$H$6
B22: 19 | AH22: _W20_9 | AI22: =_W20_9 -> 8 | AJ22: V.B | AK22: Unterhalt'!$H$6
B23: 20 | AH23: _W20_10 | AI23: =_W20_10 -> 11 | AJ23: V.B | AK23: Unterhalt'!$H$6
AH24: _W20_11 | AI24: =_W20_11 -> 16 | AJ24: V.B | AK24: Unterhalt'!$H$7
AH25: _W20_12 | AI25: =_W20_12 -> 2 | AJ25: V.B | AK25: Unterhalt'!$H$7
AH26: _W20_13 | AI26: =_W20_13 -> 12 | AJ26: V.B | AK26: Unterhalt'!$H$8
AH27: _W20_14 | AI27: =_W20_14 -> 10 | AJ27: V.B | AK27: Unterhalt'!$D$15
AH28: _W20_15 | AI28: =_W20_15 -> 6 | AJ28: V.B | AK28: Unterhalt'!$D$15
AH29: _W20_16 | AI29: =_W20_16 -> 13 | AJ29: V.B | AK29: Unterhalt'!$D$16
AH30: _W20_17 | AI30: =_W20_17 -> 13 | AJ30: V.B | AK30: Unterhalt'!$D$16
AH31: _W20_18 | AI31: =_W20_18 -> 6 | AJ31: V.B | AK31: Unterhalt'!$D$17
AH32: _W20_19 | AI32: =_W20_19 -> 6 | AJ32: V.B | AK32: Unterhalt'!$D$17
AH33: _W20_20 | AI33: =_W20_20 -> 17 | AJ33: V.B | AK33: Unterhalt'!$D$17
AH34: _W20_21 | AI34: =_W20_21 -> 17 | AJ34: V.C | AK34: _InfraListe
AH35: _W20_22 | AI35: =_W20_22 -> 12 | AJ35: V.C | AK35: _InfraListe
AH36: _W20_23 | AI36: =_W20_23 -> 20 | AJ36: V.C | AK36: _InfraListe

Sheet Census
A1: Formeln | B1: =IF(OR(A1="",A1="-"),"",IFERROR(VLOOKUP($A1,[1]Tabelle2!$A:$I,B$2,FALSE),"")) ->  | C1: =IF(OR(B1="",B1="-"),"",IFERROR(VLOOKUP($A1,[1]Tabelle2!$A:$I,C$2,FALSE),"")) ->  | D1: =IF(OR(C1="",C1="-"),"",IFERROR(VLOOKUP($A1,[1]Tabelle2!$A:$I,D$2,FALSE),"")) ->  | E1: =IF(OR(D1="",D1="-"),"",IFERROR(VLOOKUP($A1,[1]Tabelle2!$A:$I,E$2,FALSE),"")) ->  | F1: =IFERROR(D1+E1,"") ->  | G1: =IFERROR(E1/F1,"") ->  | I1: Stand: Census_Nordmarken_20200717b
B2: 2 | C2: 3 | D2: 4 | E2: 9
A3: Nr. | B3: Lehen | C3: Lehensherr | D3: Menschen | E3: Zwerge | F3: Gesamt | G3: % Zwerge
A4: NOR | B4: =IF(OR(A4="",A4="-"),"",IFERROR(VLOOKUP($A4,[1]Tabelle2!$A:$I,B$2,FALSE),"")) -> Herzogtum Nordmarken | C4: =IF(OR(B4="",B4="-"),"",IFERROR(VLOOKUP($A4,[1]Tabelle2!$A:$I,C$2,FALSE),"")) -> Herzog Hagrobald Guntwin vom Großen Fluß | D4: =IF(OR(C4="",C4="-"),"",IFERROR(VLOOKUP($A4,[1]Tabelle2!$A:$I,D$2,FALSE),"")) -> 240000 | E4: =IF(OR(D4="",D4="-"),"",IFERROR(VLOOKUP($A4,[1]Tabelle2!$A:$I,E$2,FALSE),"")) -> 10715 | F4: =IFERROR(D4+E4,"") -> 250715 | G4: =IFERROR(E4/F4,"") -> 0.04273776998 | I4: Hinweis :
A5: Nor-IP | B5: =IF(OR(A5="",A5="-"),"",IFERROR(VLOOKUP($A5,[1]Tabelle2!$A:$I,B$2,FALSE),"")) -> Stadtmark Elenvina | C5: =IF(OR(B5="",B5="-"),"",IFERROR(VLOOKUP($A5,[1]Tabelle2!$A:$I,C$2,FALSE),"")) -> Graf Frankwart vom Großen Fluß | D5: =IF(OR(C5="",C5="-"),"",IFERROR(VLOOKUP($A5,[1]Tabelle2!$A:$I,D$2,FALSE),"")) -> 46000 | E5: =IF(OR(D5="",D5="-"),"",IFERROR(VLOOKUP($A5,[1]Tabelle2!$A:$I,E$2,FALSE),"")) -> 500 | F5: 46500 | G5: =IFERROR(E5/F5,"") -> 0.01075268817
A6: Nor-I-01 | B6: =IF(OR(A6="",A6="-"),"",IFERROR(VLOOKUP($A6,[1]Tabelle2!$A:$I,B$2,FALSE),"")) -> Stadtmark Elenvina | C6: =IF(OR(B6="",B6="-"),"",IFERROR(VLOOKUP($A6,[1]Tabelle2!$A:$I,C$2,FALSE),"")) -> Vogt Markward von Brüllenfels-Schleiffenröchte | D6: =IF(OR(C6="",C6="-"),"",IFERROR(VLOOKUP($A6,[1]Tabelle2!$A:$I,D$2,FALSE),"")) -> 0 | E6: =IF(OR(D6="",D6="-"),"",IFERROR(VLOOKUP($A6,[1]Tabelle2!$A:$I,E$2,FALSE),"")) -> 0 | F6: 0 | I6: Um nicht mit falschen Referenzen zu arbeiten, sind die Bezüge nur
A7: Nor-I-01P | B7: =IF(OR(A7="",A7="-"),"",IFERROR(VLOOKUP($A7,[1]Tabelle2!$A:$I,B$2,FALSE),"")) -> Ratslande Klippag | C7: =IF(OR(B7="",B7="-"),"",IFERROR(VLOOKUP($A7,[1]Tabelle2!$A:$I,C$2,FALSE),"")) -> Baronin Idra ni Bennain von Elenvina, vertreten durch Ratsvogt Radulf von Elenvina | D7: =IF(OR(C7="",C7="-"),"",IFERROR(VLOOKUP($A7,[1]Tabelle2!$A:$I,D$2,FALSE),"")) -> 30100 | E7: =IF(OR(D7="",D7="-"),"",IFERROR(VLOOKUP($A7,[1]Tabelle2!$A:$I,E$2,FALSE),"")) -> 200 | F7: 30300 | G7: 0.006600660066 | I7: Werte.
A8: Nor-I-01-1P | B8: =IF(OR(A8="",A8="-"),"",IFERROR(VLOOKUP($A8,[1]Tabelle2!$A:$I,B$2,FALSE),"")) -> Herzogenstadt Elenvina | C8: =IF(OR(B8="",B8="-"),"",IFERROR(VLOOKUP($A8,[1]Tabelle2!$A:$I,C$2,FALSE),"")) -> Herzog Hagrobald Guntwin vom Großen Flußvertreten, vertreten durch Vogt Ardo von Plötzbogen | D8: =IF(OR(C8="",C8="-"),"",IFERROR(VLOOKUP($A8,[1]Tabelle2!$A:$I,D$2,FALSE),"")) -> 12300 | E8: =IF(OR(D8="",D8="-"),"",IFERROR(VLOOKUP($A8,[1]Tabelle2!$A:$I,E$2,FALSE),"")) -> 200 | F8: 12500 | G8: 0.016 | I8: Zur Aktualisierung:
A9: Nor-I-01-P2 | B9: =IF(OR(A9="",A9="-"),"",IFERROR(VLOOKUP($A9,[1]Tabelle2!$A:$I,B$2,FALSE),"")) -> Ratsland Klippag | C9: =IF(OR(B9="",B9="-"),"",IFERROR(VLOOKUP($A9,[1]Tabelle2!$A:$I,C$2,FALSE),"")) -> Baronin Idra ni Bennain von Elenvina, vertreten durch Ratsvogt Radulf von Elenvina | D9: =IF(OR(C9="",C9="-"),"",IFERROR(VLOOKUP($A9,[1]Tabelle2!$A:$I,D$2,FALSE),"")) -> 1860 | E9: =IF(OR(D9="",D9="-"),"",IFERROR(VLOOKUP($A9,[1]Tabelle2!$A:$I,E$2,FALSE),"")) -> 0 | F9: 1860 | G9: 0 | I9: - Den Bezug zur aktuellen Version des Censuns über "Daten" ->
A10: - | B10: =IF(OR(A10="",A10="-"),"",IFERROR(VLOOKUP($A10,[1]Tabelle2!$A:$I,B$2,FALSE),"")) ->  | C10: =IF(OR(B10="",B10="-"),"",IFERROR(VLOOKUP($A10,[1]Tabelle2!$A:$I,C$2,FALSE),"")) ->  | D10: =IF(OR(C10="",C10="-"),"",IFERROR(VLOOKUP($A10,[1]Tabelle2!$A:$I,D$2,FALSE),"")) ->  | E10: =IF(OR(D10="",D10="-"),"",IFERROR(VLOOKUP($A10,[1]Tabelle2!$A:$I,E$2,FALSE),"")) ->  | I10: "Verknüpfungen bearbeiten" herstellen
A11: Nor-I-01-E1 | B11: =IF(OR(A11="",A11="-"),"",IFERROR(VLOOKUP($A11,[1]Tabelle2!$A:$I,B$2,FALSE),"")) -> Edlengut Furtland | C11: =IF(OR(B11="",B11="-"),"",IFERROR(VLOOKUP($A11,[1]Tabelle2!$A:$I,C$2,FALSE),"")) -> xxx | D11: =IF(OR(C11="",C11="-"),"",IFERROR(VLOOKUP($A11,[1]Tabelle2!$A:$I,D$2,FALSE),"")) -> 0 | E11: =IF(OR(D11="",D11="-"),"",IFERROR(VLOOKUP($A11,[1]Tabelle2!$A:$I,E$2,FALSE),"")) -> 0 | F11: 0 | I11: - Die Nr. in Spalte A aus dem aktuellen Census kopieren
A12: Nor-I-01-E2 | B12: =IF(OR(A12="",A12="-"),"",IFERROR(VLOOKUP($A12,[1]Tabelle2!$A:$I,B$2,FALSE),"")) -> Edlengut Hahnland | C12: =IF(OR(B12="",B12="-"),"",IFERROR(VLOOKUP($A12,[1]Tabelle2!$A:$I,C$2,FALSE),"")) -> xxx | D12: =IF(OR(C12="",C12="-"),"",IFERROR(VLOOKUP($A12,[1]Tabelle2!$A:$I,D$2,FALSE),"")) -> 0 | E12: =IF(OR(D12="",D12="-"),"",IFERROR(VLOOKUP($A12,[1]Tabelle2!$A:$I,E$2,FALSE),"")) -> 0 | F12: 0 | I12: - Die Formeln aus B1:F1 hinter die Nummern kopieren
A13: Nor-I-01-E3 | B13: =IF(OR(A13="",A13="-"),"",IFERROR(VLOOKUP($A13,[1]Tabelle2!$A:$I,B$2,FALSE),"")) -> Edlengut Forstland | C13: =IF(OR(B13="",B13="-"),"",IFERROR(VLOOKUP($A13,[1]Tabelle2!$A:$I,C$2,FALSE),"")) -> xxx | D13: =IF(OR(C13="",C13="-"),"",IFERROR(VLOOKUP($A13,[1]Tabelle2!$A:$I,D$2,FALSE),"")) -> 0 | E13: =IF(OR(D13="",D13="-"),"",IFERROR(VLOOKUP($A13,[1]Tabelle2!$A:$I,E$2,FALSE),"")) -> 0 | F13: 0 | I13: - Alle Formeln in B4:Fxxx durch Werte ersetzen
A14: Nor-I-01-E4 | B14: =IF(OR(A14="",A14="-"),"",IFERROR(VLOOKUP($A14,[1]Tabelle2!$A:$I,B$2,FALSE),"")) -> Edlengut Stiefelstieg | C14: =IF(OR(B14="",B14="-"),"",IFERROR(VLOOKUP($A14,[1]Tabelle2!$A:$I,C$2,FALSE),"")) -> Edler Randoald von Zweibruckenburg | D14: =IF(OR(C14="",C14="-"),"",IFERROR(VLOOKUP($A14,[1]Tabelle2!$A:$I,D$2,FALSE),"")) -> 0 | E14: =IF(OR(D14="",D14="-"),"",IFERROR(VLOOKUP($A14,[1]Tabelle2!$A:$I,E$2,FALSE),"")) -> 0 | F14: 0
A15: Nor-I-01-E5 | B15: =IF(OR(A15="",A15="-"),"",IFERROR(VLOOKUP($A15,[1]Tabelle2!$A:$I,B$2,FALSE),"")) -> Edlengut Wachtland | C15: =IF(OR(B15="",B15="-"),"",IFERROR(VLOOKUP($A15,[1]Tabelle2!$A:$I,C$2,FALSE),"")) -> xxx | D15: =IF(OR(C15="",C15="-"),"",IFERROR(VLOOKUP($A15,[1]Tabelle2!$A:$I,D$2,FALSE),"")) -> 0 | E15: =IF(OR(D15="",D15="-"),"",IFERROR(VLOOKUP($A15,[1]Tabelle2!$A:$I,E$2,FALSE),"")) -> 0 | F15: 0
A16: Nor-I-01-E6 | B16: =IF(OR(A16="",A16="-"),"",IFERROR(VLOOKUP($A16,[1]Tabelle2!$A:$I,B$2,FALSE),"")) -> Edlengut Wogenland | C16: =IF(OR(B16="",B16="-"),"",IFERROR(VLOOKUP($A16,[1]Tabelle2!$A:$I,C$2,FALSE),"")) -> xxx | D16: =IF(OR(C16="",C16="-"),"",IFERROR(VLOOKUP($A16,[1]Tabelle2!$A:$I,D$2,FALSE),"")) -> 0 | E16: =IF(OR(D16="",D16="-"),"",IFERROR(VLOOKUP($A16,[1]Tabelle2!$A:$I,E$2,FALSE),"")) -> 0 | F16: 0
A17: Nor-I-01-J1 | B17: =IF(OR(A17="",A17="-"),"",IFERROR(VLOOKUP($A17,[1]Tabelle2!$A:$I,B$2,FALSE),"")) -> Junkergut Herrnburg | C17: =IF(OR(B17="",B17="-"),"",IFERROR(VLOOKUP($A17,[1]Tabelle2!$A:$I,C$2,FALSE),"")) -> Junkerin Bilhild Ulfahan von Herrnburg | D17: =IF(OR(C17="",C17="-"),"",IFERROR(VLOOKUP($A17,[1]Tabelle2!$A:$I,D$2,FALSE),"")) -> 0 | E17: =IF(OR(D17="",D17="-"),"",IFERROR(VLOOKUP($A17,[1]Tabelle2!$A:$I,E$2,FALSE),"")) -> 0 | F17: 0
A18: Nor-I-02P | B18: =IF(OR(A18="",A18="-"),"",IFERROR(VLOOKUP($A18,[1]Tabelle2!$A:$I,B$2,FALSE),"")) -> Herzöglich Fuchsgau | C18: =IF(OR(B18="",B18="-"),"",IFERROR(VLOOKUP($A18,[1]Tabelle2!$A:$I,C$2,FALSE),"")) -> Baron Hagrobald Guntwin vom Großen Fluss, vertreten durch Vogt Leodegram von Starkenrast | D18: =IF(OR(C18="",C18="-"),"",IFERROR(VLOOKUP($A18,[1]Tabelle2!$A:$I,D$2,FALSE),"")) -> 10200 | E18: =IF(OR(D18="",D18="-"),"",IFERROR(VLOOKUP($A18,[1]Tabelle2!$A:$I,E$2,FALSE),"")) -> 50 | F18: 10250 | G18: 0.00487804878
A19: Nor-I-02P-E1 | B19: =IF(OR(A19="",A19="-"),"",IFERROR(VLOOKUP($A19,[1]Tabelle2!$A:$I,B$2,FALSE),"")) -> Edlengut Fuchshag | C19: =IF(OR(B19="",B19="-"),"",IFERROR(VLOOKUP($A19,[1]Tabelle2!$A:$I,C$2,FALSE),"")) -> Edler Onjaro von Fuchshag | D19: =IF(OR(C19="",C19="-"),"",IFERROR(VLOOKUP($A19,[1]Tabelle2!$A:$I,D$2,FALSE),"")) -> 0 | E19: =IF(OR(D19="",D19="-"),"",IFERROR(VLOOKUP($A19,[1]Tabelle2!$A:$I,E$2,FALSE),"")) -> 0 | F19: 0
A20: Nor-I-02P-E2 | B20: =IF(OR(A20="",A20="-"),"",IFERROR(VLOOKUP($A20,[1]Tabelle2!$A:$I,B$2,FALSE),"")) -> Burg Grötz | C20: =IF(OR(B20="",B20="-"),"",IFERROR(VLOOKUP($A20,[1]Tabelle2!$A:$I,C$2,FALSE),"")) -> Leodegram von Starkenrast | D20: =IF(OR(C20="",C20="-"),"",IFERROR(VLOOKUP($A20,[1]Tabelle2!$A:$I,D$2,FALSE),"")) -> 0 | E20: =IF(OR(D20="",D20="-"),"",IFERROR(VLOOKUP($A20,[1]Tabelle2!$A:$I,E$2,FALSE),"")) -> 0 | F20: 0
A21: Nor-I-02P-E3 | B21: =IF(OR(A21="",A21="-"),"",IFERROR(VLOOKUP($A21,[1]Tabelle2!$A:$I,B$2,FALSE),"")) -> Gut Kargenau | C21: =IF(OR(B21="",B21="-"),"",IFERROR(VLOOKUP($A21,[1]Tabelle2!$A:$I,C$2,FALSE),"")) -> - | D21: =IF(OR(C21="",C21="-"),"",IFERROR(VLOOKUP($A21,[1]Tabelle2!$A:$I,D$2,FALSE),"")) ->  | E21: =IF(OR(D21="",D21="-"),"",IFERROR(VLOOKUP($A21,[1]Tabelle2!$A:$I,E$2,FALSE),"")) -> 
A22: Nor-I-02P-E4 | B22: =IF(OR(A22="",A22="-"),"",IFERROR(VLOOKUP($A22,[1]Tabelle2!$A:$I,B$2,FALSE),"")) -> Gut Altprein | C22: =IF(OR(B22="",B22="-"),"",IFERROR(VLOOKUP($A22,[1]Tabelle2!$A:$I,C$2,FALSE),"")) -> Iseweine von Weiseprein | D22: =IF(OR(C22="",C22="-"),"",IFERROR(VLOOKUP($A22,[1]Tabelle2!$A:$I,D$2,FALSE),"")) -> 230 | E22: =IF(OR(D22="",D22="-"),"",IFERROR(VLOOKUP($A22,[1]Tabelle2!$A:$I,E$2,FALSE),"")) -> 7 | F22: 237 | G22: 0.02953586498
A23: Nor-I-02P-E5 | B23: =IF(OR(A23="",A23="-"),"",IFERROR(VLOOKUP($A23,[1]Tabelle2!$A:$I,B$2,FALSE),"")) -> Edlengut Erlengrund | C23: =IF(OR(B23="",B23="-"),"",IFERROR(VLOOKUP($A23,[1]Tabelle2!$A:$I,C$2,FALSE),"")) -> Edler Meinrich von Erlengrund | D23: =IF(OR(C23="",C23="-"),"",IFERROR(VLOOKUP($A23,[1]Tabelle2!$A:$I,D$2,FALSE),"")) -> 0 | E23: =IF(OR(D23="",D23="-"),"",IFERROR(VLOOKUP($A23,[1]Tabelle2!$A:$I,E$2,FALSE),"")) -> 0 | F23: 0
A24: Nor-I-02P-E6 | B24: =IF(OR(A24="",A24="-"),"",IFERROR(VLOOKUP($A24,[1]Tabelle2!$A:$I,B$2,FALSE),"")) -> Burg Haduraldsruh | C24: =IF(OR(B24="",B24="-"),"",IFERROR(VLOOKUP($A24,[1]Tabelle2!$A:$I,C$2,FALSE),"")) -> Edler Helmin von Schleiffenröchte | D24: =IF(OR(C24="",C24="-"),"",IFERROR(VLOOKUP($A24,[1]Tabelle2!$A:$I,D$2,FALSE),"")) -> 0 | E24: =IF(OR(D24="",D24="-"),"",IFERROR(VLOOKUP($A24,[1]Tabelle2!$A:$I,E$2,FALSE),"")) -> 0 | F24: 0
A25: Nor-I-02P-J1 | B25: =IF(OR(A25="",A25="-"),"",IFERROR(VLOOKUP($A25,[1]Tabelle2!$A:$I,B$2,FALSE),"")) -> Junkergut Storchengarten | C25: =IF(OR(B25="",B25="-"),"",IFERROR(VLOOKUP($A25,[1]Tabelle2!$A:$I,C$2,FALSE),"")) -> Ivetta von Leihenhof, Vertreten von Zelda Sobelstein | D25: =IF(OR(C25="",C25="-"),"",IFERROR(VLOOKUP($A25,[1]Tabelle2!$A:$I,D$2,FALSE),"")) -> 0 | E25: =IF(OR(D25="",D25="-"),"",IFERROR(VLOOKUP($A25,[1]Tabelle2!$A:$I,E$2,FALSE),"")) -> 0 | F25: 0
A26: Nor-I-03P | B26: =IF(OR(A26="",A26="-"),"",IFERROR(VLOOKUP($A26,[1]Tabelle2!$A:$I,B$2,FALSE),"")) -> Herzöglich Bollharschen | C26: =IF(OR(B26="",B26="-"),"",IFERROR(VLOOKUP($A26,[1]Tabelle2!$A:$I,C$2,FALSE),"")) -> Baron Hagrobald Guntwin vom Großen Fluß, vertreten durch Vogt Helmbrecht v. Bösenau | D26: =IF(OR(C26="",C26="-"),"",IFERROR(VLOOKUP($A26,[1]Tabelle2!$A:$I,D$2,FALSE),"")) -> 5700 | E26: =IF(OR(D26="",D26="-"),"",IFERROR(VLOOKUP($A26,[1]Tabelle2!$A:$I,E$2,FALSE),"")) -> 250 | F26: 5950 | G26: 0.04201680672
A27: - | B27: =IF(OR(A27="",A27="-"),"",IFERROR(VLOOKUP($A27,[1]Tabelle2!$A:$I,B$2,FALSE),"")) ->  | C27: =IF(OR(B27="",B27="-"),"",IFERROR(VLOOKUP($A27,[1]Tabelle2!$A:$I,C$2,FALSE),"")) ->  | D27: =IF(OR(C27="",C27="-"),"",IFERROR(VLOOKUP($A27,[1]Tabelle2!$A:$I,D$2,FALSE),"")) ->  | E27: =IF(OR(D27="",D27="-"),"",IFERROR(VLOOKUP($A27,[1]Tabelle2!$A:$I,E$2,FALSE),"")) -> 
A28: - | B28: =IF(OR(A28="",A28="-"),"",IFERROR(VLOOKUP($A28,[1]Tabelle2!$A:$I,B$2,FALSE),"")) ->  | C28: =IF(OR(B28="",B28="-"),"",IFERROR(VLOOKUP($A28,[1]Tabelle2!$A:$I,C$2,FALSE),"")) ->  | D28: =IF(OR(C28="",C28="-"),"",IFERROR(VLOOKUP($A28,[1]Tabelle2!$A:$I,D$2,FALSE),"")) ->  | E28: =IF(OR(D28="",D28="-"),"",IFERROR(VLOOKUP($A28,[1]Tabelle2!$A:$I,E$2,FALSE),"")) -> 
A29: - | B29: =IF(OR(A29="",A29="-"),"",IFERROR(VLOOKUP($A29,[1]Tabelle2!$A:$I,B$2,FALSE),"")) ->  | C29: =IF(OR(B29="",B29="-"),"",IFERROR(VLOOKUP($A29,[1]Tabelle2!$A:$I,C$2,FALSE),"")) ->  | D29: =IF(OR(C29="",C29="-"),"",IFERROR(VLOOKUP($A29,[1]Tabelle2!$A:$I,D$2,FALSE),"")) ->  | E29: =IF(OR(D29="",D29="-"),"",IFERROR(VLOOKUP($A29,[1]Tabelle2!$A:$I,E$2,FALSE),"")) -> 
A30: Nor-I-03P-E1 | B30: =IF(OR(A30="",A30="-"),"",IFERROR(VLOOKUP($A30,[1]Tabelle2!$A:$I,B$2,FALSE),"")) -> Rittergut Drachentrutz | C30: =IF(OR(B30="",B30="-"),"",IFERROR(VLOOKUP($A30,[1]Tabelle2!$A:$I,C$2,FALSE),"")) -> Ritter Alrik Dernheim v.Drachentrutz | D30: =IF(OR(C30="",C30="-"),"",IFERROR(VLOOKUP($A30,[1]Tabelle2!$A:$I,D$2,FALSE),"")) -> 0 | E30: =IF(OR(D30="",D30="-"),"",IFERROR(VLOOKUP($A30,[1]Tabelle2!$A:$I,E$2,FALSE),"")) -> 0 | F30: 0
A31: Nor-I-03P-E2 | B31: =IF(OR(A31="",A31="-"),"",IFERROR(VLOOKUP($A31,[1]Tabelle2!$A:$I,B$2,FALSE),"")) -> Rittergut Dernheim | C31: =IF(OR(B31="",B31="-"),"",IFERROR(VLOOKUP($A31,[1]Tabelle2!$A:$I,C$2,FALSE),"")) -> Ritter Alrik Dernheim v.Drachentrutz | D31: =IF(OR(C31="",C31="-"),"",IFERROR(VLOOKUP($A31,[1]Tabelle2!$A:$I,D$2,FALSE),"")) -> 0 | E31: =IF(OR(D31="",D31="-"),"",IFERROR(VLOOKUP($A31,[1]Tabelle2!$A:$I,E$2,FALSE),"")) -> 0 | F31: 0
A32: Nor-I-03P-E3 | B32: =IF(OR(A32="",A32="-"),"",IFERROR(VLOOKUP($A32,[1]Tabelle2!$A:$I,B$2,FALSE),"")) -> Gut Morgenau | C32: =IF(OR(B32="",B32="-"),"",IFERROR(VLOOKUP($A32,[1]Tabelle2!$A:$I,C$2,FALSE),"")) -> Quarion von Quakenbrück | D32: =IF(OR(C32="",C32="-"),"",IFERROR(VLOOKUP($A32,[1]Tabelle2!$A:$I,D$2,FALSE),"")) -> 0 | E32: =IF(OR(D32="",D32="-"),"",IFERROR(VLOOKUP($A32,[1]Tabelle2!$A:$I,E$2,FALSE),"")) -> 0 | F32: 0
A33: Nor-I-03P-E4 | B33: =IF(OR(A33="",A33="-"),"",IFERROR(VLOOKUP($A33,[1]Tabelle2!$A:$I,B$2,FALSE),"")) -> Dorf Eisenbrück | C33: =IF(OR(B33="",B33="-"),"",IFERROR(VLOOKUP($A33,[1]Tabelle2!$A:$I,C$2,FALSE),"")) -> - | D33: =IF(OR(C33="",C33="-"),"",IFERROR(VLOOKUP($A33,[1]Tabelle2!$A:$I,D$2,FALSE),"")) ->  | E33: =IF(OR(D33="",D33="-"),"",IFERROR(VLOOKUP($A33,[1]Tabelle2!$A:$I,E$2,FALSE),"")) -> 
A34: Nor-I-03P-J1 | B34: =IF(OR(A34="",A34="-"),"",IFERROR(VLOOKUP($A34,[1]Tabelle2!$A:$I,B$2,FALSE),"")) -> Junkergut Züchtelsen | C34: =IF(OR(B34="",B34="-"),"",IFERROR(VLOOKUP($A34,[1]Tabelle2!$A:$I,C$2,FALSE),"")) -> Junker Kalman v. Züchtelsen | D34: =IF(OR(C34="",C34="-"),"",IFERROR(VLOOKUP($A34,[1]Tabelle2!$A:$I,D$2,FALSE),"")) -> 0 | E34: =IF(OR(D34="",D34="-"),"",IFERROR(VLOOKUP($A34,[1]Tabelle2!$A:$I,E$2,FALSE),"")) -> 0 | F34: 0
A35: Nor-I-03P-J2 | B35: =IF(OR(A35="",A35="-"),"",IFERROR(VLOOKUP($A35,[1]Tabelle2!$A:$I,B$2,FALSE),"")) -> Gut Finstermoor | C35: =IF(OR(B35="",B35="-"),"",IFERROR(VLOOKUP($A35,[1]Tabelle2!$A:$I,C$2,FALSE),"")) -> - | D35: =IF(OR(C35="",C35="-"),"",IFERROR(VLOOKUP($A35,[1]Tabelle2!$A:$I,D$2,FALSE),"")) ->  | E35: =IF(OR(D35="",D35="-"),"",IFERROR(VLOOKUP($A35,[1]Tabelle2!$A:$I,E$2,FALSE),"")) -> 
A36: Nor-II | B36: =IF(OR(A36="",A36="-"),"",IFERROR(VLOOKUP($A36,[1]Tabelle2!$A:$I,B$2,FALSE),"")) -> Grafschaft Isenhag | C36: =IF(OR(B36="",B36="-"),"",IFERROR(VLOOKUP($A36,[1]Tabelle2!$A:$I,C$2,FALSE),"")) -> Graf Ghambir, Sohn des Gruin | D36: =IF(OR(C36="",C36="-"),"",IFERROR(VLOOKUP($A36,[1]Tabelle2!$A:$I,D$2,FALSE),"")) -> 50100 | E36: =IF(OR(D36="",D36="-"),"",IFERROR(VLOOKUP($A36,[1]Tabelle2!$A:$I,E$2,FALSE),"")) -> 6055 | F36: 56155 | G36: 0.1078265515
A37: Nor-II-01 | B37: =IF(OR(A37="",A37="-"),"",IFERROR(VLOOKUP($A37,[1]Tabelle2!$A:$I,B$2,FALSE),"")) -> Baronie Kyndoch | C37: =IF(OR(B37="",B37="-"),"",IFERROR(VLOOKUP($A37,[1]Tabelle2!$A:$I,C$2,FALSE),"")) -> Baron Liafwin von Fadersberg zu Kyndoch | D37: =IF(OR(C37="",C37="-"),"",IFERROR(VLOOKUP($A37,[1]Tabelle2!$A:$I,D$2,FALSE),"")) -> 9100 | E37: =IF(OR(D37="",D37="-"),"",IFERROR(VLOOKUP($A37,[1]Tabelle2!$A:$I,E$2,FALSE),"")) -> 55 | F37: 9155 | G37: 0.006007646095
A38: - | B38: =IF(OR(A38="",A38="-"),"",IFERROR(VLOOKUP($A38,[1]Tabelle2!$A:$I,B$2,FALSE),"")) ->  | C38: =IF(OR(B38="",B38="-"),"",IFERROR(VLOOKUP($A38,[1]Tabelle2!$A:$I,C$2,FALSE),"")) ->  | D38: =IF(OR(C38="",C38="-"),"",IFERROR(VLOOKUP($A38,[1]Tabelle2!$A:$I,D$2,FALSE),"")) ->  | E38: =IF(OR(D38="",D38="-"),"",IFERROR(VLOOKUP($A38,[1]Tabelle2!$A:$I,E$2,FALSE),"")) -> 
A39: Nor-II-01-E1 | B39: =IF(OR(A39="",A39="-"),"",IFERROR(VLOOKUP($A39,[1]Tabelle2!$A:$I,B$2,FALSE),"")) -> Edlengut Rodenbrück | C39: =IF(OR(B39="",B39="-"),"",IFERROR(VLOOKUP($A39,[1]Tabelle2!$A:$I,C$2,FALSE),"")) -> Rondriane Cella von Rodenbrück | D39: =IF(OR(C39="",C39="-"),"",IFERROR(VLOOKUP($A39,[1]Tabelle2!$A:$I,D$2,FALSE),"")) -> 350 | E39: =IF(OR(D39="",D39="-"),"",IFERROR(VLOOKUP($A39,[1]Tabelle2!$A:$I,E$2,FALSE),"")) -> 0 | F39: 350 | G39: 0
A40: Nor-II-01-E2 | B40: =IF(OR(A40="",A40="-"),"",IFERROR(VLOOKUP($A40,[1]Tabelle2!$A:$I,B$2,FALSE),"")) -> Edlengut Kronau | C40: =IF(OR(B40="",B40="-"),"",IFERROR(VLOOKUP($A40,[1]Tabelle2!$A:$I,C$2,FALSE),"")) -> Edle Verladindhana von Hamrath | D40: =IF(OR(C40="",C40="-"),"",IFERROR(VLOOKUP($A40,[1]Tabelle2!$A:$I,D$2,FALSE),"")) -> 1500 | E40: =IF(OR(D40="",D40="-"),"",IFERROR(VLOOKUP($A40,[1]Tabelle2!$A:$I,E$2,FALSE),"")) -> 0 | F40: 1500 | G40: 0
A41: Nor-II-01-E3 | B41: =IF(OR(A41="",A41="-"),"",IFERROR(VLOOKUP($A41,[1]Tabelle2!$A:$I,B$2,FALSE),"")) -> Rittergut Tannwald | C41: =IF(OR(B41="",B41="-"),"",IFERROR(VLOOKUP($A41,[1]Tabelle2!$A:$I,C$2,FALSE),"")) -> Gilia von Zweigensang | D41: =IF(OR(C41="",C41="-"),"",IFERROR(VLOOKUP($A41,[1]Tabelle2!$A:$I,D$2,FALSE),"")) -> 300 | E41: =IF(OR(D41="",D41="-"),"",IFERROR(VLOOKUP($A41,[1]Tabelle2!$A:$I,E$2,FALSE),"")) -> 0 | F41: 300 | G41: 0
A42: Nor-II-01-E4 | B42: =IF(OR(A42="",A42="-"),"",IFERROR(VLOOKUP($A42,[1]Tabelle2!$A:$I,B$2,FALSE),"")) -> Rittergut Linnartstein | C42: =IF(OR(B42="",B42="-"),"",IFERROR(VLOOKUP($A42,[1]Tabelle2!$A:$I,C$2,FALSE),"")) -> Ritter Thymon vom Traurigen Stein | D42: =IF(OR(C42="",C42="-"),"",IFERROR(VLOOKUP($A42,[1]Tabelle2!$A:$I,D$2,FALSE),"")) -> 450 | E42: =IF(OR(D42="",D42="-"),"",IFERROR(VLOOKUP($A42,[1]Tabelle2!$A:$I,E$2,FALSE),"")) -> 0 | F42: 450 | G42: 0
A43: Nor-II-01-J1 | B43: =IF(OR(A43="",A43="-"),"",IFERROR(VLOOKUP($A43,[1]Tabelle2!$A:$I,B$2,FALSE),"")) -> Junkergut Ostendorf | C43: =IF(OR(B43="",B43="-"),"",IFERROR(VLOOKUP($A43,[1]Tabelle2!$A:$I,C$2,FALSE),"")) -> Junker Otgar von Salmfang | D43: =IF(OR(C43="",C43="-"),"",IFERROR(VLOOKUP($A43,[1]Tabelle2!$A:$I,D$2,FALSE),"")) -> 2250 | E43: =IF(OR(D43="",D43="-"),"",IFERROR(VLOOKUP($A43,[1]Tabelle2!$A:$I,E$2,FALSE),"")) -> 5 | F43: 2255 | G43: 0.0022172949
A44: Nor-II-01-J1-R1 | B44: =IF(OR(A44="",A44="-"),"",IFERROR(VLOOKUP($A44,[1]Tabelle2!$A:$I,B$2,FALSE),"")) -> Rittergut Klein Münzberg | C44: =IF(OR(B44="",B44="-"),"",IFERROR(VLOOKUP($A44,[1]Tabelle2!$A:$I,C$2,FALSE),"")) -> Ritter Aurian von Münzberg | D44: =IF(OR(C44="",C44="-"),"",IFERROR(VLOOKUP($A44,[1]Tabelle2!$A:$I,D$2,FALSE),"")) -> 450 | E44: =IF(OR(D44="",D44="-"),"",IFERROR(VLOOKUP($A44,[1]Tabelle2!$A:$I,E$2,FALSE),"")) -> 5 | F44: 455 | G44: 0.01098901099
A45: Nor-II-02 | B45: =IF(OR(A45="",A45="-"),"",IFERROR(VLOOKUP($A45,[1]Tabelle2!$A:$I,B$2,FALSE),"")) -> Baronie Tandosch | C45: =IF(OR(B45="",B45="-"),"",IFERROR(VLOOKUP($A45,[1]Tabelle2!$A:$I,C$2,FALSE),"")) -> Baron Irian von Tandosch | D45: =IF(OR(C45="",C45="-"),"",IFERROR(VLOOKUP($A45,[1]Tabelle2!$A:$I,D$2,FALSE),"")) -> 5000 | E45: =IF(OR(D45="",D45="-"),"",IFERROR(VLOOKUP($A45,[1]Tabelle2!$A:$I,E$2,FALSE),"")) -> 150 | F45: 5150 | G45: 0.02912621359
B46: =IF(OR(A46="",A46="-"),"",IFERROR(VLOOKUP($A46,[1]Tabelle2!$A:$I,B$2,FALSE),"")) ->  | C46: =IF(OR(B46="",B46="-"),"",IFERROR(VLOOKUP($A46,[1]Tabelle2!$A:$I,C$2,FALSE),"")) ->  | D46: =IF(OR(C46="",C46="-"),"",IFERROR(VLOOKUP($A46,[1]Tabelle2!$A:$I,D$2,FALSE),"")) ->  | E46: =IF(OR(D46="",D46="-"),"",IFERROR(VLOOKUP($A46,[1]Tabelle2!$A:$I,E$2,FALSE),"")) -> 
A47: Nor-II-02-J1 | B47: =IF(OR(A47="",A47="-"),"",IFERROR(VLOOKUP($A47,[1]Tabelle2!$A:$I,B$2,FALSE),"")) -> Edlengut Bärenkoppen | C47: =IF(OR(B47="",B47="-"),"",IFERROR(VLOOKUP($A47,[1]Tabelle2!$A:$I,C$2,FALSE),"")) -> Edler Viknas von Bärenkoppen | D47: =IF(OR(C47="",C47="-"),"",IFERROR(VLOOKUP($A47,[1]Tabelle2!$A:$I,D$2,FALSE),"")) -> 0 | E47: =IF(OR(D47="",D47="-"),"",IFERROR(VLOOKUP($A47,[1]Tabelle2!$A:$I,E$2,FALSE),"")) -> 0 | F47: 0
A48: Nor-II-03P | B48: =IF(OR(A48="",A48="-"),"",IFERROR(VLOOKUP($A48,[1]Tabelle2!$A:$I,B$2,FALSE),"")) -> Herzöglich Brüllenbösen | C48: =IF(OR(B48="",B48="-"),"",IFERROR(VLOOKUP($A48,[1]Tabelle2!$A:$I,C$2,FALSE),"")) -> Baron Hagrobald Guntwin vom Großen Fluß, Vogt Barox, Sohn des Burgamon | D48: =IF(OR(C48="",C48="-"),"",IFERROR(VLOOKUP($A48,[1]Tabelle2!$A:$I,D$2,FALSE),"")) -> 2500 | E48: =IF(OR(D48="",D48="-"),"",IFERROR(VLOOKUP($A48,[1]Tabelle2!$A:$I,E$2,FALSE),"")) -> 200 | F48: 2700 | G48: 0.07407407407
A49: - | B49: =IF(OR(A49="",A49="-"),"",IFERROR(VLOOKUP($A49,[1]Tabelle2!$A:$I,B$2,FALSE),"")) ->  | C49: =IF(OR(B49="",B49="-"),"",IFERROR(VLOOKUP($A49,[1]Tabelle2!$A:$I,C$2,FALSE),"")) ->  | D49: =IF(OR(C49="",C49="-"),"",IFERROR(VLOOKUP($A49,[1]Tabelle2!$A:$I,D$2,FALSE),"")) ->  | E49: =IF(OR(D49="",D49="-"),"",IFERROR(VLOOKUP($A49,[1]Tabelle2!$A:$I,E$2,FALSE),"")) -> 
A50: Nor-II-03P-E1 | B50: =IF(OR(A50="",A50="-"),"",IFERROR(VLOOKUP($A50,[1]Tabelle2!$A:$I,B$2,FALSE),"")) -> Edlengut Erzwacht | C50: =IF(OR(B50="",B50="-"),"",IFERROR(VLOOKUP($A50,[1]Tabelle2!$A:$I,C$2,FALSE),"")) -> Edler Xorgolosch Sohn des Fuldoram | D50: =IF(OR(C50="",C50="-"),"",IFERROR(VLOOKUP($A50,[1]Tabelle2!$A:$I,D$2,FALSE),"")) -> 280 | E50: =IF(OR(D50="",D50="-"),"",IFERROR(VLOOKUP($A50,[1]Tabelle2!$A:$I,E$2,FALSE),"")) -> 
A51: Nor-II-03P-E2 | B51: =IF(OR(A51="",A51="-"),"",IFERROR(VLOOKUP($A51,[1]Tabelle2!$A:$I,B$2,FALSE),"")) -> Burg Landwacht | C51: =IF(OR(B51="",B51="-"),"",IFERROR(VLOOKUP($A51,[1]Tabelle2!$A:$I,C$2,FALSE),"")) -> Ritter Filwald von Landwacht | D51: =IF(OR(C51="",C51="-"),"",IFERROR(VLOOKUP($A51,[1]Tabelle2!$A:$I,D$2,FALSE),"")) -> 600 | E51: =IF(OR(D51="",D51="-"),"",IFERROR(VLOOKUP($A51,[1]Tabelle2!$A:$I,E$2,FALSE),"")) -> 0 | F51: 600 | G51: 0
A52: Nor-II-03P-E3 | B52: =IF(OR(A52="",A52="-"),"",IFERROR(VLOOKUP($A52,[1]Tabelle2!$A:$I,B$2,FALSE),"")) -> Rittergut Ackerfelde | C52: =IF(OR(B52="",B52="-"),"",IFERROR(VLOOKUP($A52,[1]Tabelle2!$A:$I,C$2,FALSE),"")) -> Ritter Halmar von Schellenberg zu Ackerfelde | D52: =IF(OR(C52="",C52="-"),"",IFERROR(VLOOKUP($A52,[1]Tabelle2!$A:$I,D$2,FALSE),"")) -> 740 | E52: =IF(OR(D52="",D52="-"),"",IFERROR(VLOOKUP($A52,[1]Tabelle2!$A:$I,E$2,FALSE),"")) -> 0 | F52: 740 | G52: 0
A53: Nor-II-03P-E4 | B53: =IF(OR(A53="",A53="-"),"",IFERROR(VLOOKUP($A53,[1]Tabelle2!$A:$I,B$2,FALSE),"")) -> Edlengut Grafenstift | C53: =IF(OR(B53="",B53="-"),"",IFERROR(VLOOKUP($A53,[1]Tabelle2!$A:$I,C$2,FALSE),"")) -> Edler Kinson von Korogar zu Grafenstift | D53: =IF(OR(C53="",C53="-"),"",IFERROR(VLOOKUP($A53,[1]Tabelle2!$A:$I,D$2,FALSE),"")) -> 510 | E53: =IF(OR(D53="",D53="-"),"",IFERROR(VLOOKUP($A53,[1]Tabelle2!$A:$I,E$2,FALSE),"")) -> 0 | F53: 510 | G53: 0
A54: Nor-II-03P-E5 | B54: =IF(OR(A54="",A54="-"),"",IFERROR(VLOOKUP($A54,[1]Tabelle2!$A:$I,B$2,FALSE),"")) -> Gut Wiedenhof | C54: =IF(OR(B54="",B54="-"),"",IFERROR(VLOOKUP($A54,[1]Tabelle2!$A:$I,C$2,FALSE),"")) -> Ambrosius von Wiedenhof | D54: =IF(OR(C54="",C54="-"),"",IFERROR(VLOOKUP($A54,[1]Tabelle2!$A:$I,D$2,FALSE),"")) -> 370 | E54: =IF(OR(D54="",D54="-"),"",IFERROR(VLOOKUP($A54,[1]Tabelle2!$A:$I,E$2,FALSE),"")) -> 0 | F54: 370 | G54: 0
A55: Nor-II-04 | B55: =IF(OR(A55="",A55="-"),"",IFERROR(VLOOKUP($A55,[1]Tabelle2!$A:$I,B$2,FALSE),"")) -> Baronie Rodaschquell | C55: =IF(OR(B55="",B55="-"),"",IFERROR(VLOOKUP($A55,[1]Tabelle2!$A:$I,C$2,FALSE),"")) -> Baronin Liana Alyandéra Morgenrot von Rodaschquell | D55: =IF(OR(C55="",C55="-"),"",IFERROR(VLOOKUP($A55,[1]Tabelle2!$A:$I,D$2,FALSE),"")) -> 2200 | E55: =IF(OR(D55="",D55="-"),"",IFERROR(VLOOKUP($A55,[1]Tabelle2!$A:$I,E$2,FALSE),"")) -> 200 | F55: 2400 | G55: 0.08333333333
A56: - | B56: =IF(OR(A56="",A56="-"),"",IFERROR(VLOOKUP($A56,[1]Tabelle2!$A:$I,B$2,FALSE),"")) ->  | C56: =IF(OR(B56="",B56="-"),"",IFERROR(VLOOKUP($A56,[1]Tabelle2!$A:$I,C$2,FALSE),"")) ->  | D56: =IF(OR(C56="",C56="-"),"",IFERROR(VLOOKUP($A56,[1]Tabelle2!$A:$I,D$2,FALSE),"")) ->  | E56: =IF(OR(D56="",D56="-"),"",IFERROR(VLOOKUP($A56,[1]Tabelle2!$A:$I,E$2,FALSE),"")) -> 
A57: Nor-II-04-E1 | B57: =IF(OR(A57="",A57="-"),"",IFERROR(VLOOKUP($A57,[1]Tabelle2!$A:$I,B$2,FALSE),"")) -> Gut Rosenhain | C57: =IF(OR(B57="",B57="-"),"",IFERROR(VLOOKUP($A57,[1]Tabelle2!$A:$I,C$2,FALSE),"")) -> Edler Ernbrecht Travialieb von Mersingen j.H. zu Rosenhain | D57: =IF(OR(C57="",C57="-"),"",IFERROR(VLOOKUP($A57,[1]Tabelle2!$A:$I,D$2,FALSE),"")) -> 0 | E57: =IF(OR(D57="",D57="-"),"",IFERROR(VLOOKUP($A57,[1]Tabelle2!$A:$I,E$2,FALSE),"")) -> 0 | F57: 0
A58: Nor-II-04-E2 | B58: =IF(OR(A58="",A58="-"),"",IFERROR(VLOOKUP($A58,[1]Tabelle2!$A:$I,B$2,FALSE),"")) -> Gut Wernhag | C58: =IF(OR(B58="",B58="-"),"",IFERROR(VLOOKUP($A58,[1]Tabelle2!$A:$I,C$2,FALSE),"")) -> Ritter Ferdilas von Avaris zu Wernhag | D58: =IF(OR(C58="",C58="-"),"",IFERROR(VLOOKUP($A58,[1]Tabelle2!$A:$I,D$2,FALSE),"")) -> 30 | E58: =IF(OR(D58="",D58="-"),"",IFERROR(VLOOKUP($A58,[1]Tabelle2!$A:$I,E$2,FALSE),"")) -> 
A59: Nor-II-05aBK | B59: =IF(OR(A59="",A59="-"),"",IFERROR(VLOOKUP($A59,[1]Tabelle2!$A:$I,B$2,FALSE),"")) -> Bergfreiheit Xorlosch | C59: =IF(OR(B59="",B59="-"),"",IFERROR(VLOOKUP($A59,[1]Tabelle2!$A:$I,C$2,FALSE),"")) -> Bergkönig Tschubax, Sohn des Tuagel von Xorlosch | D59: =IF(OR(C59="",C59="-"),"",IFERROR(VLOOKUP($A59,[1]Tabelle2!$A:$I,D$2,FALSE),"")) -> 300 | E59: =IF(OR(D59="",D59="-"),"",IFERROR(VLOOKUP($A59,[1]Tabelle2!$A:$I,E$2,FALSE),"")) -> 1850 | F59: 2150 | G59: 0.8604651163
A60: Nor-II-05bBK | B60: =IF(OR(A60="",A60="-"),"",IFERROR(VLOOKUP($A60,[1]Tabelle2!$A:$I,B$2,FALSE),"")) -> Stadt Xorlosch | C60: =IF(OR(B60="",B60="-"),"",IFERROR(VLOOKUP($A60,[1]Tabelle2!$A:$I,C$2,FALSE),"")) -> Bergkönig Tschubax, Sohn des Tuagel von Xorlosch | D60: =IF(OR(C60="",C60="-"),"",IFERROR(VLOOKUP($A60,[1]Tabelle2!$A:$I,D$2,FALSE),"")) -> 0 | E60: =IF(OR(D60="",D60="-"),"",IFERROR(VLOOKUP($A60,[1]Tabelle2!$A:$I,E$2,FALSE),"")) -> 1600 | F60: 1600 | G60: 1
A61: Nor-II-05BK-G | B61: =IF(OR(A61="",A61="-"),"",IFERROR(VLOOKUP($A61,[1]Tabelle2!$A:$I,B$2,FALSE),"")) -> Vogtei Oberrodasch | C61: =IF(OR(B61="",B61="-"),"",IFERROR(VLOOKUP($A61,[1]Tabelle2!$A:$I,C$2,FALSE),"")) -> Vogtin Utsinde v. Plötzbogen | D61: =IF(OR(C61="",C61="-"),"",IFERROR(VLOOKUP($A61,[1]Tabelle2!$A:$I,D$2,FALSE),"")) ->  | E61: =IF(OR(D61="",D61="-"),"",IFERROR(VLOOKUP($A61,[1]Tabelle2!$A:$I,E$2,FALSE),"")) -> 
A62: Nor-II-05BK-E1 | B62: =IF(OR(A62="",A62="-"),"",IFERROR(VLOOKUP($A62,[1]Tabelle2!$A:$I,B$2,FALSE),"")) -> Edlengut Hetzenberg | C62: =IF(OR(B62="",B62="-"),"",IFERROR(VLOOKUP($A62,[1]Tabelle2!$A:$I,C$2,FALSE),"")) -> Edler Hechard von Hetzenberg | D62: =IF(OR(C62="",C62="-"),"",IFERROR(VLOOKUP($A62,[1]Tabelle2!$A:$I,D$2,FALSE),"")) -> 0 | E62: =IF(OR(D62="",D62="-"),"",IFERROR(VLOOKUP($A62,[1]Tabelle2!$A:$I,E$2,FALSE),"")) -> 0 | F62: 0
A63: Nor-II-06K-E1 | B63: =IF(OR(A63="",A63="-"),"",IFERROR(VLOOKUP($A63,[1]Tabelle2!$A:$I,B$2,FALSE),"")) -> Pfalzgrafschaft Angroschsgau | C63: =IF(OR(B63="",B63="-"),"",IFERROR(VLOOKUP($A63,[1]Tabelle2!$A:$I,C$2,FALSE),"")) -> Kaiserin Rohaja von Gareth, vertreten durch Ratosch, Sohn des Rathorn von Angroschsgau | D63: =IF(OR(C63="",C63="-"),"",IFERROR(VLOOKUP($A63,[1]Tabelle2!$A:$I,D$2,FALSE),"")) -> 1900 | E63: =IF(OR(D63="",D63="-"),"",IFERROR(VLOOKUP($A63,[1]Tabelle2!$A:$I,E$2,FALSE),"")) -> 300 | F63: 2200 | G63: 0.1363636364
A64: Nor-II-06K-E1 | B64: =IF(OR(A64="",A64="-"),"",IFERROR(VLOOKUP($A64,[1]Tabelle2!$A:$I,B$2,FALSE),"")) -> Pfalzgrafschaft Angroschsgau | C64: =IF(OR(B64="",B64="-"),"",IFERROR(VLOOKUP($A64,[1]Tabelle2!$A:$I,C$2,FALSE),"")) -> Kaiserin Rohaja von Gareth, vertreten durch Ratosch, Sohn des Rathorn von Angroschsgau | D64: =IF(OR(C64="",C64="-"),"",IFERROR(VLOOKUP($A64,[1]Tabelle2!$A:$I,D$2,FALSE),"")) -> 1900 | E64: =IF(OR(D64="",D64="-"),"",IFERROR(VLOOKUP($A64,[1]Tabelle2!$A:$I,E$2,FALSE),"")) -> 300 | F64: 2200 | G64: 0.1363636364
A65: Nor-II-07G | B65: =IF(OR(A65="",A65="-"),"",IFERROR(VLOOKUP($A65,[1]Tabelle2!$A:$I,B$2,FALSE),"")) -> Gräflich Wedengraben | C65: =IF(OR(B65="",B65="-"),"",IFERROR(VLOOKUP($A65,[1]Tabelle2!$A:$I,C$2,FALSE),"")) -> Graf Ghambir, Sohn des Gruin, vertreten durch Vogt Grubosch, Sohn des Gurthag v. Wedenstein | D65: =IF(OR(C65="",C65="-"),"",IFERROR(VLOOKUP($A65,[1]Tabelle2!$A:$I,D$2,FALSE),"")) -> 2400 | E65: =IF(OR(D65="",D65="-"),"",IFERROR(VLOOKUP($A65,[1]Tabelle2!$A:$I,E$2,FALSE),"")) -> 650 | F65: 3050 | G65: 0.2131147541
A66: - | B66: =IF(OR(A66="",A66="-"),"",IFERROR(VLOOKUP($A66,[1]Tabelle2!$A:$I,B$2,FALSE),"")) ->  | C66: =IF(OR(B66="",B66="-"),"",IFERROR(VLOOKUP($A66,[1]Tabelle2!$A:$I,C$2,FALSE),"")) ->  | D66: =IF(OR(C66="",C66="-"),"",IFERROR(VLOOKUP($A66,[1]Tabelle2!$A:$I,D$2,FALSE),"")) ->  | E66: =IF(OR(D66="",D66="-"),"",IFERROR(VLOOKUP($A66,[1]Tabelle2!$A:$I,E$2,FALSE),"")) -> 
A67: - | B67: =IF(OR(A67="",A67="-"),"",IFERROR(VLOOKUP($A67,[1]Tabelle2!$A:$I,B$2,FALSE),"")) ->  | C67: =IF(OR(B67="",B67="-"),"",IFERROR(VLOOKUP($A67,[1]Tabelle2!$A:$I,C$2,FALSE),"")) ->  | D67: =IF(OR(C67="",C67="-"),"",IFERROR(VLOOKUP($A67,[1]Tabelle2!$A:$I,D$2,FALSE),"")) ->  | E67: =IF(OR(D67="",D67="-"),"",IFERROR(VLOOKUP($A67,[1]Tabelle2!$A:$I,E$2,FALSE),"")) -> 
A68: Nor-II-08 | B68: =IF(OR(A68="",A68="-"),"",IFERROR(VLOOKUP($A68,[1]Tabelle2!$A:$I,B$2,FALSE),"")) -> Baronie Eisenstein | C68: =IF(OR(B68="",B68="-"),"",IFERROR(VLOOKUP($A68,[1]Tabelle2!$A:$I,C$2,FALSE),"")) -> Baron Rajodan v. Keyserring auf Eisenstein | D68: =IF(OR(C68="",C68="-"),"",IFERROR(VLOOKUP($A68,[1]Tabelle2!$A:$I,D$2,FALSE),"")) -> 5100 | E68: =IF(OR(D68="",D68="-"),"",IFERROR(VLOOKUP($A68,[1]Tabelle2!$A:$I,E$2,FALSE),"")) -> 100 | F68: =IFERROR(D68+E68,"") -> 5200 | G68: 0.01923076923
A69: Nor-II-08-E1 | B69: =IF(OR(A69="",A69="-"),"",IFERROR(VLOOKUP($A69,[1]Tabelle2!$A:$I,B$2,FALSE),"")) -> Gut Bösenau | C69: =IF(OR(B69="",B69="-"),"",IFERROR(VLOOKUP($A69,[1]Tabelle2!$A:$I,C$2,FALSE),"")) -> - | D69: =IF(OR(C69="",C69="-"),"",IFERROR(VLOOKUP($A69,[1]Tabelle2!$A:$I,D$2,FALSE),"")) ->  | E69: =IF(OR(D69="",D69="-"),"",IFERROR(VLOOKUP($A69,[1]Tabelle2!$A:$I,E$2,FALSE),"")) ->  | G69: =IFERROR(E69/F69,"") -> 
A70: Nor-II-08-E2 | B70: =IF(OR(A70="",A70="-"),"",IFERROR(VLOOKUP($A70,[1]Tabelle2!$A:$I,B$2,FALSE),"")) -> Gut Eschengrund | C70: =IF(OR(B70="",B70="-"),"",IFERROR(VLOOKUP($A70,[1]Tabelle2!$A:$I,C$2,FALSE),"")) -> Anselm von Eschengrund | D70: =IF(OR(C70="",C70="-"),"",IFERROR(VLOOKUP($A70,[1]Tabelle2!$A:$I,D$2,FALSE),"")) -> 0 | E70: =IF(OR(D70="",D70="-"),"",IFERROR(VLOOKUP($A70,[1]Tabelle2!$A:$I,E$2,FALSE),"")) -> 0 | F70: 0
A71: Nor-II-08-E3 | B71: =IF(OR(A71="",A71="-"),"",IFERROR(VLOOKUP($A71,[1]Tabelle2!$A:$I,B$2,FALSE),"")) -> Gut Moosgau | C71: =IF(OR(B71="",B71="-"),"",IFERROR(VLOOKUP($A71,[1]Tabelle2!$A:$I,C$2,FALSE),"")) -> Rahjalin von Bösenbursch | D71: =IF(OR(C71="",C71="-"),"",IFERROR(VLOOKUP($A71,[1]Tabelle2!$A:$I,D$2,FALSE),"")) -> 0 | E71: =IF(OR(D71="",D71="-"),"",IFERROR(VLOOKUP($A71,[1]Tabelle2!$A:$I,E$2,FALSE),"")) -> 0 | F71: 0
A72: Nor-II-08-E4 | B72: =IF(OR(A72="",A72="-"),"",IFERROR(VLOOKUP($A72,[1]Tabelle2!$A:$I,B$2,FALSE),"")) -> Gut Drakenswald | C72: =IF(OR(B72="",B72="-"),"",IFERROR(VLOOKUP($A72,[1]Tabelle2!$A:$I,C$2,FALSE),"")) -> - | D72: =IF(OR(C72="",C72="-"),"",IFERROR(VLOOKUP($A72,[1]Tabelle2!$A:$I,D$2,FALSE),"")) ->  | E72: =IF(OR(D72="",D72="-"),"",IFERROR(VLOOKUP($A72,[1]Tabelle2!$A:$I,E$2,FALSE),"")) -> 
A73: Nor-II-08-E5 | B73: =IF(OR(A73="",A73="-"),"",IFERROR(VLOOKUP($A73,[1]Tabelle2!$A:$I,B$2,FALSE),"")) -> Gut Krähenwald | C73: =IF(OR(B73="",B73="-"),"",IFERROR(VLOOKUP($A73,[1]Tabelle2!$A:$I,C$2,FALSE),"")) -> - | D73: =IF(OR(C73="",C73="-"),"",IFERROR(VLOOKUP($A73,[1]Tabelle2!$A:$I,D$2,FALSE),"")) ->  | E73: =IF(OR(D73="",D73="-"),"",IFERROR(VLOOKUP($A73,[1]Tabelle2!$A:$I,E$2,FALSE),"")) -> 
A74: Nor-II-08-E6 | B74: =IF(OR(A74="",A74="-"),"",IFERROR(VLOOKUP($A74,[1]Tabelle2!$A:$I,B$2,FALSE),"")) -> Edlengut Rickenbach | C74: =IF(OR(B74="",B74="-"),"",IFERROR(VLOOKUP($A74,[1]Tabelle2!$A:$I,C$2,FALSE),"")) -> Edler Lupius von Schellenberg | D74: =IF(OR(C74="",C74="-"),"",IFERROR(VLOOKUP($A74,[1]Tabelle2!$A:$I,D$2,FALSE),"")) -> 0 | E74: =IF(OR(D74="",D74="-"),"",IFERROR(VLOOKUP($A74,[1]Tabelle2!$A:$I,E$2,FALSE),"")) -> 0 | F74: 0
A75: Nor-II-08-E7 | B75: =IF(OR(A75="",A75="-"),"",IFERROR(VLOOKUP($A75,[1]Tabelle2!$A:$I,B$2,FALSE),"")) -> Edlengut Erdeschtal | C75: =IF(OR(B75="",B75="-"),"",IFERROR(VLOOKUP($A75,[1]Tabelle2!$A:$I,C$2,FALSE),"")) -> Baron Rajodan von Keyserring | D75: =IF(OR(C75="",C75="-"),"",IFERROR(VLOOKUP($A75,[1]Tabelle2!$A:$I,D$2,FALSE),"")) -> 0 | E75: =IF(OR(D75="",D75="-"),"",IFERROR(VLOOKUP($A75,[1]Tabelle2!$A:$I,E$2,FALSE),"")) -> 0 | F75: 0
A76: Nor-II-08-E9 | B76: =IF(OR(A76="",A76="-"),"",IFERROR(VLOOKUP($A76,[1]Tabelle2!$A:$I,B$2,FALSE),"")) -> Edlengut Hinterwald | C76: =IF(OR(B76="",B76="-"),"",IFERROR(VLOOKUP($A76,[1]Tabelle2!$A:$I,C$2,FALSE),"")) -> Edler Vitold von Baldursstolz | D76: =IF(OR(C76="",C76="-"),"",IFERROR(VLOOKUP($A76,[1]Tabelle2!$A:$I,D$2,FALSE),"")) -> 0 | E76: =IF(OR(D76="",D76="-"),"",IFERROR(VLOOKUP($A76,[1]Tabelle2!$A:$I,E$2,FALSE),"")) -> 0 | F76: 0
A77: Nor-II-08-E10 | B77: =IF(OR(A77="",A77="-"),"",IFERROR(VLOOKUP($A77,[1]Tabelle2!$A:$I,B$2,FALSE),"")) -> Edlengut Erd-Eschenwald | C77: =IF(OR(B77="",B77="-"),"",IFERROR(VLOOKUP($A77,[1]Tabelle2!$A:$I,C$2,FALSE),"")) -> Edler Erlan von Borkenforst | D77: =IF(OR(C77="",C77="-"),"",IFERROR(VLOOKUP($A77,[1]Tabelle2!$A:$I,D$2,FALSE),"")) -> 0 | E77: =IF(OR(D77="",D77="-"),"",IFERROR(VLOOKUP($A77,[1]Tabelle2!$A:$I,E$2,FALSE),"")) -> 0 | F77: 0
A78: Nor-II-08-E11 | B78: =IF(OR(A78="",A78="-"),"",IFERROR(VLOOKUP($A78,[1]Tabelle2!$A:$I,B$2,FALSE),"")) -> Edlengut Breewald | C78: =IF(OR(B78="",B78="-"),"",IFERROR(VLOOKUP($A78,[1]Tabelle2!$A:$I,C$2,FALSE),"")) -> Edler Noitburg von Rechklamm | D78: =IF(OR(C78="",C78="-"),"",IFERROR(VLOOKUP($A78,[1]Tabelle2!$A:$I,D$2,FALSE),"")) -> 0 | E78: =IF(OR(D78="",D78="-"),"",IFERROR(VLOOKUP($A78,[1]Tabelle2!$A:$I,E$2,FALSE),"")) -> 0 | F78: 0
A79: Nor-II-08-E12 | B79: =IF(OR(A79="",A79="-"),"",IFERROR(VLOOKUP($A79,[1]Tabelle2!$A:$I,B$2,FALSE),"")) -> Edlengut Burg Eisenstein | C79: =IF(OR(B79="",B79="-"),"",IFERROR(VLOOKUP($A79,[1]Tabelle2!$A:$I,C$2,FALSE),"")) -> Edler Gorwin von Eisenstein-Schleiffenröchte | D79: =IF(OR(C79="",C79="-"),"",IFERROR(VLOOKUP($A79,[1]Tabelle2!$A:$I,D$2,FALSE),"")) -> 0 | E79: =IF(OR(D79="",D79="-"),"",IFERROR(VLOOKUP($A79,[1]Tabelle2!$A:$I,E$2,FALSE),"")) -> 0 | F79: 0
A80: Nor-II-09aR | B80: =IF(OR(A80="",A80="-"),"",IFERROR(VLOOKUP($A80,[1]Tabelle2!$A:$I,B$2,FALSE),"")) -> Baronie Eisenhuett | C80: =IF(OR(B80="",B80="-"),"",IFERROR(VLOOKUP($A80,[1]Tabelle2!$A:$I,C$2,FALSE),"")) -> Vogt Jast Godehard von Schleiffenröchte / Ehemals Baron Roderich Siegbert v. Quakenbrück bis zu dessen Flucht 1037 BF | D80: =IF(OR(C80="",C80="-"),"",IFERROR(VLOOKUP($A80,[1]Tabelle2!$A:$I,D$2,FALSE),"")) -> 10300 | E80: =IF(OR(D80="",D80="-"),"",IFERROR(VLOOKUP($A80,[1]Tabelle2!$A:$I,E$2,FALSE),"")) -> 50 | F80: 10350 | G80: 0.004830917874
A81: Nor-II-09b | B81: =IF(OR(A81="",A81="-"),"",IFERROR(VLOOKUP($A81,[1]Tabelle2!$A:$I,B$2,FALSE),"")) -> Reichsstadt Eisenhuett | C81: =IF(OR(B81="",B81="-"),"",IFERROR(VLOOKUP($A81,[1]Tabelle2!$A:$I,C$2,FALSE),"")) -> Kaiserin Rohaja von Gareth, vertreten durch Stadtmeister Gneiserich Obersperger | D81: =IF(OR(C81="",C81="-"),"",IFERROR(VLOOKUP($A81,[1]Tabelle2!$A:$I,D$2,FALSE),"")) -> 690 | E81: =IF(OR(D81="",D81="-"),"",IFERROR(VLOOKUP($A81,[1]Tabelle2!$A:$I,E$2,FALSE),"")) -> 30 | F81: 720 | G81: 0.04166666667
A82: - | B82: =IF(OR(A82="",A82="-"),"",IFERROR(VLOOKUP($A82,[1]Tabelle2!$A:$I,B$2,FALSE),"")) ->  | C82: =IF(OR(B82="",B82="-"),"",IFERROR(VLOOKUP($A82,[1]Tabelle2!$A:$I,C$2,FALSE),"")) ->  | D82: =IF(OR(C82="",C82="-"),"",IFERROR(VLOOKUP($A82,[1]Tabelle2!$A:$I,D$2,FALSE),"")) ->  | E82: =IF(OR(D82="",D82="-"),"",IFERROR(VLOOKUP($A82,[1]Tabelle2!$A:$I,E$2,FALSE),"")) -> 
A83: Nor-II-09-E1 | B83: =IF(OR(A83="",A83="-"),"",IFERROR(VLOOKUP($A83,[1]Tabelle2!$A:$I,B$2,FALSE),"")) -> Gut Quakenbrück | C83: =IF(OR(B83="",B83="-"),"",IFERROR(VLOOKUP($A83,[1]Tabelle2!$A:$I,C$2,FALSE),"")) -> Roderich Siegberg von und zu Quakenbrück | D83: =IF(OR(C83="",C83="-"),"",IFERROR(VLOOKUP($A83,[1]Tabelle2!$A:$I,D$2,FALSE),"")) -> 0 | E83: =IF(OR(D83="",D83="-"),"",IFERROR(VLOOKUP($A83,[1]Tabelle2!$A:$I,E$2,FALSE),"")) -> 0 | F83: 0
A84: Nor-II-09-E2 | B84: =IF(OR(A84="",A84="-"),"",IFERROR(VLOOKUP($A84,[1]Tabelle2!$A:$I,B$2,FALSE),"")) -> Gut Schrazelroth | C84: =IF(OR(B84="",B84="-"),"",IFERROR(VLOOKUP($A84,[1]Tabelle2!$A:$I,C$2,FALSE),"")) -> Darian von Lifstein | D84: =IF(OR(C84="",C84="-"),"",IFERROR(VLOOKUP($A84,[1]Tabelle2!$A:$I,D$2,FALSE),"")) -> 370 | E84: =IF(OR(D84="",D84="-"),"",IFERROR(VLOOKUP($A84,[1]Tabelle2!$A:$I,E$2,FALSE),"")) -> 0 | F84: 370 | G84: 0
A85: Nor-II-09-E3 | B85: =IF(OR(A85="",A85="-"),"",IFERROR(VLOOKUP($A85,[1]Tabelle2!$A:$I,B$2,FALSE),"")) -> Gut Garstenborn | C85: =IF(OR(B85="",B85="-"),"",IFERROR(VLOOKUP($A85,[1]Tabelle2!$A:$I,C$2,FALSE),"")) -> - | D85: =IF(OR(C85="",C85="-"),"",IFERROR(VLOOKUP($A85,[1]Tabelle2!$A:$I,D$2,FALSE),"")) ->  | E85: =IF(OR(D85="",D85="-"),"",IFERROR(VLOOKUP($A85,[1]Tabelle2!$A:$I,E$2,FALSE),"")) -> 
A86: Nor-II-09-E4 | B86: =IF(OR(A86="",A86="-"),"",IFERROR(VLOOKUP($A86,[1]Tabelle2!$A:$I,B$2,FALSE),"")) -> Rittergut Schwarzklamm | C86: =IF(OR(B86="",B86="-"),"",IFERROR(VLOOKUP($A86,[1]Tabelle2!$A:$I,C$2,FALSE),"")) -> Hadebrand von Harthals-Schwarzklamm | D86: =IF(OR(C86="",C86="-"),"",IFERROR(VLOOKUP($A86,[1]Tabelle2!$A:$I,D$2,FALSE),"")) -> 0 | E86: =IF(OR(D86="",D86="-"),"",IFERROR(VLOOKUP($A86,[1]Tabelle2!$A:$I,E$2,FALSE),"")) -> 0 | F86: 0
A87: Nor-II-09-E5 | B87: =IF(OR(A87="",A87="-"),"",IFERROR(VLOOKUP($A87,[1]Tabelle2!$A:$I,B$2,FALSE),"")) -> Gut Krotenau | C87: =IF(OR(B87="",B87="-"),"",IFERROR(VLOOKUP($A87,[1]Tabelle2!$A:$I,C$2,FALSE),"")) -> Greifhold von Krotenau | D87: =IF(OR(C87="",C87="-"),"",IFERROR(VLOOKUP($A87,[1]Tabelle2!$A:$I,D$2,FALSE),"")) ->  | E87: =IF(OR(D87="",D87="-"),"",IFERROR(VLOOKUP($A87,[1]Tabelle2!$A:$I,E$2,FALSE),"")) -> 
A88: Nor-II-09-J1 | B88: =IF(OR(A88="",A88="-"),"",IFERROR(VLOOKUP($A88,[1]Tabelle2!$A:$I,B$2,FALSE),"")) -> Junkergut Lanzenberg | C88: =IF(OR(B88="",B88="-"),"",IFERROR(VLOOKUP($A88,[1]Tabelle2!$A:$I,C$2,FALSE),"")) -> Junker Alvaro Cyprian ya Mornicala zu Lanzenberg | D88: =IF(OR(C88="",C88="-"),"",IFERROR(VLOOKUP($A88,[1]Tabelle2!$A:$I,D$2,FALSE),"")) ->  | E88: =IF(OR(D88="",D88="-"),"",IFERROR(VLOOKUP($A88,[1]Tabelle2!$A:$I,E$2,FALSE),"")) -> 
A89: Nor-II-10BK | B89: =IF(OR(A89="",A89="-"),"",IFERROR(VLOOKUP($A89,[1]Tabelle2!$A:$I,B$2,FALSE),"")) -> Bergfreiheit Eisenwald | C89: =IF(OR(B89="",B89="-"),"",IFERROR(VLOOKUP($A89,[1]Tabelle2!$A:$I,C$2,FALSE),"")) -> Bergkönig Fargol Sohn des Fanderam von Eisenwald | D89: =IF(OR(C89="",C89="-"),"",IFERROR(VLOOKUP($A89,[1]Tabelle2!$A:$I,D$2,FALSE),"")) -> 3200 | E89: =IF(OR(D89="",D89="-"),"",IFERROR(VLOOKUP($A89,[1]Tabelle2!$A:$I,E$2,FALSE),"")) -> 1600 | F89: 4800 | G89: 0.3333333333
A90: - | B90: =IF(OR(A90="",A90="-"),"",IFERROR(VLOOKUP($A90,[1]Tabelle2!$A:$I,B$2,FALSE),"")) ->  | C90: =IF(OR(B90="",B90="-"),"",IFERROR(VLOOKUP($A90,[1]Tabelle2!$A:$I,C$2,FALSE),"")) ->  | D90: =IF(OR(C90="",C90="-"),"",IFERROR(VLOOKUP($A90,[1]Tabelle2!$A:$I,D$2,FALSE),"")) ->  | E90: =IF(OR(D90="",D90="-"),"",IFERROR(VLOOKUP($A90,[1]Tabelle2!$A:$I,E$2,FALSE),"")) -> 
A91: Nor-II-10BK | B91: =IF(OR(A91="",A91="-"),"",IFERROR(VLOOKUP($A91,[1]Tabelle2!$A:$I,B$2,FALSE),"")) -> Bergfreiheit Eisenwald | C91: =IF(OR(B91="",B91="-"),"",IFERROR(VLOOKUP($A91,[1]Tabelle2!$A:$I,C$2,FALSE),"")) -> Bergkönig Fargol Sohn des Fanderam von Eisenwald | D91: =IF(OR(C91="",C91="-"),"",IFERROR(VLOOKUP($A91,[1]Tabelle2!$A:$I,D$2,FALSE),"")) -> 3200 | E91: =IF(OR(D91="",D91="-"),"",IFERROR(VLOOKUP($A91,[1]Tabelle2!$A:$I,E$2,FALSE),"")) -> 1600 | F91: 4800 | G91: 0.3333333333
A92: Nor-II-10BK-E1 | B92: =IF(OR(A92="",A92="-"),"",IFERROR(VLOOKUP($A92,[1]Tabelle2!$A:$I,B$2,FALSE),"")) -> Edlengut Nilsitz | C92: =IF(OR(B92="",B92="-"),"",IFERROR(VLOOKUP($A92,[1]Tabelle2!$A:$I,C$2,FALSE),"")) -> Edle Rhela von Nilsitz | D92: =IF(OR(C92="",C92="-"),"",IFERROR(VLOOKUP($A92,[1]Tabelle2!$A:$I,D$2,FALSE),"")) -> 0 | E92: =IF(OR(D92="",D92="-"),"",IFERROR(VLOOKUP($A92,[1]Tabelle2!$A:$I,E$2,FALSE),"")) -> 0 | F92: 0
A93: Nor-II-10BK-E2 | B93: =IF(OR(A93="",A93="-"),"",IFERROR(VLOOKUP($A93,[1]Tabelle2!$A:$I,B$2,FALSE),"")) -> Edlengut Sturzenstein | C93: =IF(OR(B93="",B93="-"),"",IFERROR(VLOOKUP($A93,[1]Tabelle2!$A:$I,C$2,FALSE),"")) -> Kalvar Kupferfeld zu Sturzenstein | D93: =IF(OR(C93="",C93="-"),"",IFERROR(VLOOKUP($A93,[1]Tabelle2!$A:$I,D$2,FALSE),"")) -> 0 | E93: =IF(OR(D93="",D93="-"),"",IFERROR(VLOOKUP($A93,[1]Tabelle2!$A:$I,E$2,FALSE),"")) -> 0 | F93: 0
A94: Nor-II-10BK-E3 | B94: =IF(OR(A94="",A94="-"),"",IFERROR(VLOOKUP($A94,[1]Tabelle2!$A:$I,B$2,FALSE),"")) -> Bergwacht Ishna‘Mur | C94: =IF(OR(B94="",B94="-"),"",IFERROR(VLOOKUP($A94,[1]Tabelle2!$A:$I,C$2,FALSE),"")) -> Bergvogt Borix Sohn des Barax | D94: =IF(OR(C94="",C94="-"),"",IFERROR(VLOOKUP($A94,[1]Tabelle2!$A:$I,D$2,FALSE),"")) -> 0 | E94: =IF(OR(D94="",D94="-"),"",IFERROR(VLOOKUP($A94,[1]Tabelle2!$A:$I,E$2,FALSE),"")) -> 100 | F94: 100 | G94: 1
A95: Nor-II-10BK-J1 | B95: =IF(OR(A95="",A95="-"),"",IFERROR(VLOOKUP($A95,[1]Tabelle2!$A:$I,B$2,FALSE),"")) -> Burg Trollpforz | C95: =IF(OR(B95="",B95="-"),"",IFERROR(VLOOKUP($A95,[1]Tabelle2!$A:$I,C$2,FALSE),"")) -> Jungfer Talina von Trollpforz | D95: =IF(OR(C95="",C95="-"),"",IFERROR(VLOOKUP($A95,[1]Tabelle2!$A:$I,D$2,FALSE),"")) -> 0 | E95: =IF(OR(D95="",D95="-"),"",IFERROR(VLOOKUP($A95,[1]Tabelle2!$A:$I,E$2,FALSE),"")) -> 
A96: Nor-II-11 | B96: =IF(OR(A96="",A96="-"),"",IFERROR(VLOOKUP($A96,[1]Tabelle2!$A:$I,B$2,FALSE),"")) -> Baronie Rabenstein | C96: =IF(OR(B96="",B96="-"),"",IFERROR(VLOOKUP($A96,[1]Tabelle2!$A:$I,C$2,FALSE),"")) -> Baron Lucrann v.Rabenstein zu Rabenstein | D96: =IF(OR(C96="",C96="-"),"",IFERROR(VLOOKUP($A96,[1]Tabelle2!$A:$I,D$2,FALSE),"")) -> 2300 | E96: =IF(OR(D96="",D96="-"),"",IFERROR(VLOOKUP($A96,[1]Tabelle2!$A:$I,E$2,FALSE),"")) -> 350 | F96: 2650 | G96: 0.1320754717
A97: Nor-II-11 | B97: =IF(OR(A97="",A97="-"),"",IFERROR(VLOOKUP($A97,[1]Tabelle2!$A:$I,B$2,FALSE),"")) -> Baronie Rabenstein | C97: =IF(OR(B97="",B97="-"),"",IFERROR(VLOOKUP($A97,[1]Tabelle2!$A:$I,C$2,FALSE),"")) -> Baron Lucrann v.Rabenstein zu Rabenstein | D97: =IF(OR(C97="",C97="-"),"",IFERROR(VLOOKUP($A97,[1]Tabelle2!$A:$I,D$2,FALSE),"")) -> 2300 | E97: =IF(OR(D97="",D97="-"),"",IFERROR(VLOOKUP($A97,[1]Tabelle2!$A:$I,E$2,FALSE),"")) -> 350 | F97: 2650 | G97: 0.1320754717
A98: Nor-II-11-E1 | B98: =IF(OR(A98="",A98="-"),"",IFERROR(VLOOKUP($A98,[1]Tabelle2!$A:$I,B$2,FALSE),"")) -> Gut Finsterbach | C98: =IF(OR(B98="",B98="-"),"",IFERROR(VLOOKUP($A98,[1]Tabelle2!$A:$I,C$2,FALSE),"")) -> Domänengut des Barons | D98: =IF(OR(C98="",C98="-"),"",IFERROR(VLOOKUP($A98,[1]Tabelle2!$A:$I,D$2,FALSE),"")) -> 400 | E98: =IF(OR(D98="",D98="-"),"",IFERROR(VLOOKUP($A98,[1]Tabelle2!$A:$I,E$2,FALSE),"")) -> 50 | F98: 450 | G98: 0.1111111111
A99: Nor-II-11-E2 | B99: =IF(OR(A99="",A99="-"),"",IFERROR(VLOOKUP($A99,[1]Tabelle2!$A:$I,B$2,FALSE),"")) -> Dorf Isenbrück | C99: =IF(OR(B99="",B99="-"),"",IFERROR(VLOOKUP($A99,[1]Tabelle2!$A:$I,C$2,FALSE),"")) -> Kirchenbesitz, Richild von Moorbrück für den Orden des Hl. Golgari | D99: =IF(OR(C99="",C99="-"),"",IFERROR(VLOOKUP($A99,[1]Tabelle2!$A:$I,D$2,FALSE),"")) -> 100 | E99: =IF(OR(D99="",D99="-"),"",IFERROR(VLOOKUP($A99,[1]Tabelle2!$A:$I,E$2,FALSE),"")) -> 0 | F99: 100 | G99: 0
A100: Nor-II-11-E3 | B100: =IF(OR(A100="",A100="-"),"",IFERROR(VLOOKUP($A100,[1]Tabelle2!$A:$I,B$2,FALSE),"")) -> Burg Tannwacht | C100: =IF(OR(B100="",B100="-"),"",IFERROR(VLOOKUP($A100,[1]Tabelle2!$A:$I,C$2,FALSE),"")) -> Odewin von Wolfsstein | D100: =IF(OR(C100="",C100="-"),"",IFERROR(VLOOKUP($A100,[1]Tabelle2!$A:$I,D$2,FALSE),"")) -> 50 | E100: =IF(OR(D100="",D100="-"),"",IFERROR(VLOOKUP($A100,[1]Tabelle2!$A:$I,E$2,FALSE),"")) -> 0 | F100: 50 | G100: 0
A101: Nor-II-11-E4 | B101: =IF(OR(A101="",A101="-"),"",IFERROR(VLOOKUP($A101,[1]Tabelle2!$A:$I,B$2,FALSE),"")) -> Gut Wolfstobel | C101: =IF(OR(B101="",B101="-"),"",IFERROR(VLOOKUP($A101,[1]Tabelle2!$A:$I,C$2,FALSE),"")) -> Domänengut des Barons | D101: =IF(OR(C101="",C101="-"),"",IFERROR(VLOOKUP($A101,[1]Tabelle2!$A:$I,D$2,FALSE),"")) -> 0 | E101: =IF(OR(D101="",D101="-"),"",IFERROR(VLOOKUP($A101,[1]Tabelle2!$A:$I,E$2,FALSE),"")) -> 0 | F101: 0
A102: Nor-II-11-E5 | B102: =IF(OR(A102="",A102="-"),"",IFERROR(VLOOKUP($A102,[1]Tabelle2!$A:$I,B$2,FALSE),"")) -> Gut Schwarzthann | C102: =IF(OR(B102="",B102="-"),"",IFERROR(VLOOKUP($A102,[1]Tabelle2!$A:$I,C$2,FALSE),"")) -> Domänengut des Barons | D102: =IF(OR(C102="",C102="-"),"",IFERROR(VLOOKUP($A102,[1]Tabelle2!$A:$I,D$2,FALSE),"")) -> 200 | E102: =IF(OR(D102="",D102="-"),"",IFERROR(VLOOKUP($A102,[1]Tabelle2!$A:$I,E$2,FALSE),"")) -> 0 | F102: 200 | G102: 0
A103: Nor-II-11-E6 | B103: =IF(OR(A103="",A103="-"),"",IFERROR(VLOOKUP($A103,[1]Tabelle2!$A:$I,B$2,FALSE),"")) -> Gut Finsterkamm | C103: =IF(OR(B103="",B103="-"),"",IFERROR(VLOOKUP($A103,[1]Tabelle2!$A:$I,C$2,FALSE),"")) -> Edler Wolfhelm von Winterspitz zu Finsterkamm | D103: =IF(OR(C103="",C103="-"),"",IFERROR(VLOOKUP($A103,[1]Tabelle2!$A:$I,D$2,FALSE),"")) -> 300 | E103: =IF(OR(D103="",D103="-"),"",IFERROR(VLOOKUP($A103,[1]Tabelle2!$A:$I,E$2,FALSE),"")) -> 0 | F103: 300 | G103: 0
A104: Nor-II-11-E7 | B104: =IF(OR(A104="",A104="-"),"",IFERROR(VLOOKUP($A104,[1]Tabelle2!$A:$I,B$2,FALSE),"")) -> Gut Erzklamm | C104: =IF(OR(B104="",B104="-"),"",IFERROR(VLOOKUP($A104,[1]Tabelle2!$A:$I,C$2,FALSE),"")) -> Baron Lucrann von Rabenstein | D104: =IF(OR(C104="",C104="-"),"",IFERROR(VLOOKUP($A104,[1]Tabelle2!$A:$I,D$2,FALSE),"")) -> 250 | E104: =IF(OR(D104="",D104="-"),"",IFERROR(VLOOKUP($A104,[1]Tabelle2!$A:$I,E$2,FALSE),"")) -> 
A105: Nor-II-12 | B105: =IF(OR(A105="",A105="-"),"",IFERROR(VLOOKUP($A105,[1]Tabelle2!$A:$I,B$2,FALSE),"")) -> Baronie Dohlenfelde | C105: =IF(OR(B105="",B105="-"),"",IFERROR(VLOOKUP($A105,[1]Tabelle2!$A:$I,C$2,FALSE),"")) -> Vögtin Celissa von Fallenwerth, vormals Baron Angrond Bernhelm von Sturmfels m.H. bis zu dessen Flucht 1037 BF | D105: =IF(OR(C105="",C105="-"),"",IFERROR(VLOOKUP($A105,[1]Tabelle2!$A:$I,D$2,FALSE),"")) -> 5800 | E105: =IF(OR(D105="",D105="-"),"",IFERROR(VLOOKUP($A105,[1]Tabelle2!$A:$I,E$2,FALSE),"")) -> 550 | F105: 6350 | G105: 0.08661417323
A106: Nor-II-12-P | B106: =IF(OR(A106="",A106="-"),"",IFERROR(VLOOKUP($A106,[1]Tabelle2!$A:$I,B$2,FALSE),"")) -> Herzogenstadt Twergenhausen | C106: =IF(OR(B106="",B106="-"),"",IFERROR(VLOOKUP($A106,[1]Tabelle2!$A:$I,C$2,FALSE),"")) -> Herzog Hagrobald Guntwin vom Großen Fluss, vertreten durch Bürgermeister Perval Gliependiek | D106: =IF(OR(C106="",C106="-"),"",IFERROR(VLOOKUP($A106,[1]Tabelle2!$A:$I,D$2,FALSE),"")) -> 1120 | E106: =IF(OR(D106="",D106="-"),"",IFERROR(VLOOKUP($A106,[1]Tabelle2!$A:$I,E$2,FALSE),"")) -> 80 | F106: 1200 | G106: 0.06666666667
A107: Nor-II-12 | B107: =IF(OR(A107="",A107="-"),"",IFERROR(VLOOKUP($A107,[1]Tabelle2!$A:$I,B$2,FALSE),"")) -> Baronie Dohlenfelde | C107: =IF(OR(B107="",B107="-"),"",IFERROR(VLOOKUP($A107,[1]Tabelle2!$A:$I,C$2,FALSE),"")) -> Vögtin Celissa von Fallenwerth, vormals Baron Angrond Bernhelm von Sturmfels m.H. bis zu dessen Flucht 1037 BF | D107: =IF(OR(C107="",C107="-"),"",IFERROR(VLOOKUP($A107,[1]Tabelle2!$A:$I,D$2,FALSE),"")) -> 5800 | E107: =IF(OR(D107="",D107="-"),"",IFERROR(VLOOKUP($A107,[1]Tabelle2!$A:$I,E$2,FALSE),"")) -> 550 | F107: 6350 | G107: 0.08661417323
A108: Nor-II-12-BG1 | B108: =IF(OR(A108="",A108="-"),"",IFERROR(VLOOKUP($A108,[1]Tabelle2!$A:$I,B$2,FALSE),"")) -> Bergkönigsgut Loxolosch | C108: =IF(OR(B108="",B108="-"),"",IFERROR(VLOOKUP($A108,[1]Tabelle2!$A:$I,C$2,FALSE),"")) -> Sippenrat | D108: =IF(OR(C108="",C108="-"),"",IFERROR(VLOOKUP($A108,[1]Tabelle2!$A:$I,D$2,FALSE),"")) -> 0 | E108: =IF(OR(D108="",D108="-"),"",IFERROR(VLOOKUP($A108,[1]Tabelle2!$A:$I,E$2,FALSE),"")) -> 0 | F108: 0
A109: Nor-II-12-BG2 | B109: =IF(OR(A109="",A109="-"),"",IFERROR(VLOOKUP($A109,[1]Tabelle2!$A:$I,B$2,FALSE),"")) -> Berkönigsgut Grambosch | C109: =IF(OR(B109="",B109="-"),"",IFERROR(VLOOKUP($A109,[1]Tabelle2!$A:$I,C$2,FALSE),"")) -> Sippenrat | D109: =IF(OR(C109="",C109="-"),"",IFERROR(VLOOKUP($A109,[1]Tabelle2!$A:$I,D$2,FALSE),"")) -> 0 | E109: =IF(OR(D109="",D109="-"),"",IFERROR(VLOOKUP($A109,[1]Tabelle2!$A:$I,E$2,FALSE),"")) -> 0 | F109: 0
A110: Nor-II-12-BG3 | B110: =IF(OR(A110="",A110="-"),"",IFERROR(VLOOKUP($A110,[1]Tabelle2!$A:$I,B$2,FALSE),"")) -> Bergkönigsgut Arigalatiko | C110: =IF(OR(B110="",B110="-"),"",IFERROR(VLOOKUP($A110,[1]Tabelle2!$A:$I,C$2,FALSE),"")) -> Sippenrat | D110: =IF(OR(C110="",C110="-"),"",IFERROR(VLOOKUP($A110,[1]Tabelle2!$A:$I,D$2,FALSE),"")) -> 0 | E110: =IF(OR(D110="",D110="-"),"",IFERROR(VLOOKUP($A110,[1]Tabelle2!$A:$I,E$2,FALSE),"")) -> 0 | F110: 0
A111: Nor-II-12-E1 | B111: =IF(OR(A111="",A111="-"),"",IFERROR(VLOOKUP($A111,[1]Tabelle2!$A:$I,B$2,FALSE),"")) -> Edlengut Wolkenfold | C111: =IF(OR(B111="",B111="-"),"",IFERROR(VLOOKUP($A111,[1]Tabelle2!$A:$I,C$2,FALSE),"")) -> Edle Roana von Schwarzfels | D111: =IF(OR(C111="",C111="-"),"",IFERROR(VLOOKUP($A111,[1]Tabelle2!$A:$I,D$2,FALSE),"")) -> 0 | E111: =IF(OR(D111="",D111="-"),"",IFERROR(VLOOKUP($A111,[1]Tabelle2!$A:$I,E$2,FALSE),"")) -> 0 | F111: 0
A112: Nor-II-12-E2 | B112: =IF(OR(A112="",A112="-"),"",IFERROR(VLOOKUP($A112,[1]Tabelle2!$A:$I,B$2,FALSE),"")) -> Gräfliches Edlengut Moxarosch | C112: =IF(OR(B112="",B112="-"),"",IFERROR(VLOOKUP($A112,[1]Tabelle2!$A:$I,C$2,FALSE),"")) -> Edle Girte von Fallenwerth | D112: =IF(OR(C112="",C112="-"),"",IFERROR(VLOOKUP($A112,[1]Tabelle2!$A:$I,D$2,FALSE),"")) -> 0 | E112: =IF(OR(D112="",D112="-"),"",IFERROR(VLOOKUP($A112,[1]Tabelle2!$A:$I,E$2,FALSE),"")) -> 0 | F112: 0
A113: Nor-II-12-E3 | B113: =IF(OR(A113="",A113="-"),"",IFERROR(VLOOKUP($A113,[1]Tabelle2!$A:$I,B$2,FALSE),"")) -> Freiherrlich Dohlenfelde (cisdarlinischer Teil) | C113: =IF(OR(B113="",B113="-"),"",IFERROR(VLOOKUP($A113,[1]Tabelle2!$A:$I,C$2,FALSE),"")) -> Baron Angrond Bernhelm von Sturmfels m.H. | D113: =IF(OR(C113="",C113="-"),"",IFERROR(VLOOKUP($A113,[1]Tabelle2!$A:$I,D$2,FALSE),"")) -> 0 | E113: =IF(OR(D113="",D113="-"),"",IFERROR(VLOOKUP($A113,[1]Tabelle2!$A:$I,E$2,FALSE),"")) -> 0 | F113: 0
A114: Nor-II-12-E4 | B114: =IF(OR(A114="",A114="-"),"",IFERROR(VLOOKUP($A114,[1]Tabelle2!$A:$I,B$2,FALSE),"")) -> Freiherrlich Dohlenfelde (transdarlinischer Teil) | C114: =IF(OR(B114="",B114="-"),"",IFERROR(VLOOKUP($A114,[1]Tabelle2!$A:$I,C$2,FALSE),"")) -> Baron Angrond Bernhelm von Sturmfels m.H. | D114: =IF(OR(C114="",C114="-"),"",IFERROR(VLOOKUP($A114,[1]Tabelle2!$A:$I,D$2,FALSE),"")) -> 0 | E114: =IF(OR(D114="",D114="-"),"",IFERROR(VLOOKUP($A114,[1]Tabelle2!$A:$I,E$2,FALSE),"")) -> 0 | F114: 0
A115: Nor-II-12-E5 | B115: =IF(OR(A115="",A115="-"),"",IFERROR(VLOOKUP($A115,[1]Tabelle2!$A:$I,B$2,FALSE),"")) -> Rittergut Darilstein | C115: =IF(OR(B115="",B115="-"),"",IFERROR(VLOOKUP($A115,[1]Tabelle2!$A:$I,C$2,FALSE),"")) -> Ritter Markward von und zu Darilstein | D115: =IF(OR(C115="",C115="-"),"",IFERROR(VLOOKUP($A115,[1]Tabelle2!$A:$I,D$2,FALSE),"")) -> 0 | E115: =IF(OR(D115="",D115="-"),"",IFERROR(VLOOKUP($A115,[1]Tabelle2!$A:$I,E$2,FALSE),"")) -> 0 | F115: 0
A116: Nor-II-12-E6 | B116: =IF(OR(A116="",A116="-"),"",IFERROR(VLOOKUP($A116,[1]Tabelle2!$A:$I,B$2,FALSE),"")) -> Gut Perainshof | C116: =IF(OR(B116="",B116="-"),"",IFERROR(VLOOKUP($A116,[1]Tabelle2!$A:$I,C$2,FALSE),"")) -> vakant | D116: =IF(OR(C116="",C116="-"),"",IFERROR(VLOOKUP($A116,[1]Tabelle2!$A:$I,D$2,FALSE),"")) -> 0 | E116: =IF(OR(D116="",D116="-"),"",IFERROR(VLOOKUP($A116,[1]Tabelle2!$A:$I,E$2,FALSE),"")) -> 0 | F116: 0
A117: Nor-II-12-E7 | B117: =IF(OR(A117="",A117="-"),"",IFERROR(VLOOKUP($A117,[1]Tabelle2!$A:$I,B$2,FALSE),"")) -> Rittergut Freyen | C117: =IF(OR(B117="",B117="-"),"",IFERROR(VLOOKUP($A117,[1]Tabelle2!$A:$I,C$2,FALSE),"")) -> Ritterin Wilgunde von Nadelfels | D117: =IF(OR(C117="",C117="-"),"",IFERROR(VLOOKUP($A117,[1]Tabelle2!$A:$I,D$2,FALSE),"")) ->  | E117: =IF(OR(D117="",D117="-"),"",IFERROR(VLOOKUP($A117,[1]Tabelle2!$A:$I,E$2,FALSE),"")) -> 0
A118: Nor-II-12-J1 | B118: =IF(OR(A118="",A118="-"),"",IFERROR(VLOOKUP($A118,[1]Tabelle2!$A:$I,B$2,FALSE),"")) -> Landedlengut Zwackelfegen | C118: =IF(OR(B118="",B118="-"),"",IFERROR(VLOOKUP($A118,[1]Tabelle2!$A:$I,C$2,FALSE),"")) -> Aedin von Naris auf Zwackelfegen | D118: =IF(OR(C118="",C118="-"),"",IFERROR(VLOOKUP($A118,[1]Tabelle2!$A:$I,D$2,FALSE),"")) -> 0 | E118: =IF(OR(D118="",D118="-"),"",IFERROR(VLOOKUP($A118,[1]Tabelle2!$A:$I,E$2,FALSE),"")) -> 0 | F118: 0
A119: Nor-II-12-J2 | B119: =IF(OR(A119="",A119="-"),"",IFERROR(VLOOKUP($A119,[1]Tabelle2!$A:$I,B$2,FALSE),"")) -> Landedlengut Wichtenfels | C119: =IF(OR(B119="",B119="-"),"",IFERROR(VLOOKUP($A119,[1]Tabelle2!$A:$I,C$2,FALSE),"")) -> Voltan von Sturmfels m.H. | D119: =IF(OR(C119="",C119="-"),"",IFERROR(VLOOKUP($A119,[1]Tabelle2!$A:$I,D$2,FALSE),"")) -> 0 | E119: =IF(OR(D119="",D119="-"),"",IFERROR(VLOOKUP($A119,[1]Tabelle2!$A:$I,E$2,FALSE),"")) -> 0 | F119: 0
A120: Nor-II-12-J3 | B120: =IF(OR(A120="",A120="-"),"",IFERROR(VLOOKUP($A120,[1]Tabelle2!$A:$I,B$2,FALSE),"")) -> Gut Erzweiler | C120: =IF(OR(B120="",B120="-"),"",IFERROR(VLOOKUP($A120,[1]Tabelle2!$A:$I,C$2,FALSE),"")) -> Baron Angrond Bernhelm von Sturmfels m.H. | D120: =IF(OR(C120="",C120="-"),"",IFERROR(VLOOKUP($A120,[1]Tabelle2!$A:$I,D$2,FALSE),"")) -> 0 | E120: =IF(OR(D120="",D120="-"),"",IFERROR(VLOOKUP($A120,[1]Tabelle2!$A:$I,E$2,FALSE),"")) -> 0 | F120: 0
A121: Nor-III | B121: =IF(OR(A121="",A121="-"),"",IFERROR(VLOOKUP($A121,[1]Tabelle2!$A:$I,B$2,FALSE),"")) -> Landtgft. Gratenfels | C121: =IF(OR(B121="",B121="-"),"",IFERROR(VLOOKUP($A121,[1]Tabelle2!$A:$I,C$2,FALSE),"")) -> Landgraf Alrik Custodias-Greifax | D121: =IF(OR(C121="",C121="-"),"",IFERROR(VLOOKUP($A121,[1]Tabelle2!$A:$I,D$2,FALSE),"")) -> 104650 | E121: =IF(OR(D121="",D121="-"),"",IFERROR(VLOOKUP($A121,[1]Tabelle2!$A:$I,E$2,FALSE),"")) -> 1660 | F121: 106310 | G121: 0.01561471169
A122: Nor-III-01P | B122: =IF(OR(A122="",A122="-"),"",IFERROR(VLOOKUP($A122,[1]Tabelle2!$A:$I,B$2,FALSE),"")) -> Herzöglich Arraned | C122: =IF(OR(B122="",B122="-"),"",IFERROR(VLOOKUP($A122,[1]Tabelle2!$A:$I,C$2,FALSE),"")) -> Baron Hagrobald Guntwin vom Großen Fluss, vertreten durch Vogt Sieggold Praiomund vom Berg j.H. | D122: =IF(OR(C122="",C122="-"),"",IFERROR(VLOOKUP($A122,[1]Tabelle2!$A:$I,D$2,FALSE),"")) -> 1700 | E122: =IF(OR(D122="",D122="-"),"",IFERROR(VLOOKUP($A122,[1]Tabelle2!$A:$I,E$2,FALSE),"")) -> 100 | F122: 1800 | G122: 0.05555555556
A123: - | B123: =IF(OR(A123="",A123="-"),"",IFERROR(VLOOKUP($A123,[1]Tabelle2!$A:$I,B$2,FALSE),"")) ->  | C123: =IF(OR(B123="",B123="-"),"",IFERROR(VLOOKUP($A123,[1]Tabelle2!$A:$I,C$2,FALSE),"")) ->  | D123: =IF(OR(C123="",C123="-"),"",IFERROR(VLOOKUP($A123,[1]Tabelle2!$A:$I,D$2,FALSE),"")) ->  | E123: =IF(OR(D123="",D123="-"),"",IFERROR(VLOOKUP($A123,[1]Tabelle2!$A:$I,E$2,FALSE),"")) -> 
A124: Nor-III-01-E01 | B124: =IF(OR(A124="",A124="-"),"",IFERROR(VLOOKUP($A124,[1]Tabelle2!$A:$I,B$2,FALSE),"")) -> Burg Drachenfels (Orden des Heiligen Sturms Rondras) | C124: =IF(OR(B124="",B124="-"),"",IFERROR(VLOOKUP($A124,[1]Tabelle2!$A:$I,C$2,FALSE),"")) -> Ordensmarschallin Caya Sturmfels | D124: =IF(OR(C124="",C124="-"),"",IFERROR(VLOOKUP($A124,[1]Tabelle2!$A:$I,D$2,FALSE),"")) -> 0 | E124: =IF(OR(D124="",D124="-"),"",IFERROR(VLOOKUP($A124,[1]Tabelle2!$A:$I,E$2,FALSE),"")) -> 0 | F124: 0
A125: Nor-III-01-E02 | B125: =IF(OR(A125="",A125="-"),"",IFERROR(VLOOKUP($A125,[1]Tabelle2!$A:$I,B$2,FALSE),"")) -> Gut Eberweiler | C125: =IF(OR(B125="",B125="-"),"",IFERROR(VLOOKUP($A125,[1]Tabelle2!$A:$I,C$2,FALSE),"")) -> Edle Lioba von Schleiffenröchte | D125: =IF(OR(C125="",C125="-"),"",IFERROR(VLOOKUP($A125,[1]Tabelle2!$A:$I,D$2,FALSE),"")) -> 150 | E125: =IF(OR(D125="",D125="-"),"",IFERROR(VLOOKUP($A125,[1]Tabelle2!$A:$I,E$2,FALSE),"")) -> 0 | F125: 150 | G125: 0
A126: Nor-III-02 | B126: =IF(OR(A126="",A126="-"),"",IFERROR(VLOOKUP($A126,[1]Tabelle2!$A:$I,B$2,FALSE),"")) -> Baronie Nablafurt | C126: =IF(OR(B126="",B126="-"),"",IFERROR(VLOOKUP($A126,[1]Tabelle2!$A:$I,C$2,FALSE),"")) -> Baronin Odelinde von der Graufurt | D126: =IF(OR(C126="",C126="-"),"",IFERROR(VLOOKUP($A126,[1]Tabelle2!$A:$I,D$2,FALSE),"")) -> 1700 | E126: =IF(OR(D126="",D126="-"),"",IFERROR(VLOOKUP($A126,[1]Tabelle2!$A:$I,E$2,FALSE),"")) -> 0 | F126: 1700 | G126: 0
A127: - | B127: =IF(OR(A127="",A127="-"),"",IFERROR(VLOOKUP($A127,[1]Tabelle2!$A:$I,B$2,FALSE),"")) ->  | C127: =IF(OR(B127="",B127="-"),"",IFERROR(VLOOKUP($A127,[1]Tabelle2!$A:$I,C$2,FALSE),"")) ->  | D127: =IF(OR(C127="",C127="-"),"",IFERROR(VLOOKUP($A127,[1]Tabelle2!$A:$I,D$2,FALSE),"")) ->  | E127: =IF(OR(D127="",D127="-"),"",IFERROR(VLOOKUP($A127,[1]Tabelle2!$A:$I,E$2,FALSE),"")) -> 
A128: Nor-III-02-E1 | B128: =IF(OR(A128="",A128="-"),"",IFERROR(VLOOKUP($A128,[1]Tabelle2!$A:$I,B$2,FALSE),"")) -> Gut Wildenberg | C128: =IF(OR(B128="",B128="-"),"",IFERROR(VLOOKUP($A128,[1]Tabelle2!$A:$I,C$2,FALSE),"")) -> Edler Finmar Neidenstein von Wildenberg | D128: =IF(OR(C128="",C128="-"),"",IFERROR(VLOOKUP($A128,[1]Tabelle2!$A:$I,D$2,FALSE),"")) ->  | E128: =IF(OR(D128="",D128="-"),"",IFERROR(VLOOKUP($A128,[1]Tabelle2!$A:$I,E$2,FALSE),"")) -> 0
A129: Nor-III-02-E2 | B129: =IF(OR(A129="",A129="-"),"",IFERROR(VLOOKUP($A129,[1]Tabelle2!$A:$I,B$2,FALSE),"")) -> Edlengut Graufurt | C129: =IF(OR(B129="",B129="-"),"",IFERROR(VLOOKUP($A129,[1]Tabelle2!$A:$I,C$2,FALSE),"")) -> Junkerin Leuina Praiagund von Bilgraten zur Graufurt | D129: =IF(OR(C129="",C129="-"),"",IFERROR(VLOOKUP($A129,[1]Tabelle2!$A:$I,D$2,FALSE),"")) -> 250 | E129: =IF(OR(D129="",D129="-"),"",IFERROR(VLOOKUP($A129,[1]Tabelle2!$A:$I,E$2,FALSE),"")) -> 0 | F129: 250 | G129: 0
A130: Nor-III-02-E3 | B130: =IF(OR(A130="",A130="-"),"",IFERROR(VLOOKUP($A130,[1]Tabelle2!$A:$I,B$2,FALSE),"")) -> Gut Eichenau | C130: =IF(OR(B130="",B130="-"),"",IFERROR(VLOOKUP($A130,[1]Tabelle2!$A:$I,C$2,FALSE),"")) -> Dorcas Neidenstein von Eichenau | D130: =IF(OR(C130="",C130="-"),"",IFERROR(VLOOKUP($A130,[1]Tabelle2!$A:$I,D$2,FALSE),"")) -> 250 | E130: =IF(OR(D130="",D130="-"),"",IFERROR(VLOOKUP($A130,[1]Tabelle2!$A:$I,E$2,FALSE),"")) -> 0 | F130: 250 | G130: 0
A131: Nor-III-03 | B131: =IF(OR(A131="",A131="-"),"",IFERROR(VLOOKUP($A131,[1]Tabelle2!$A:$I,B$2,FALSE),"")) -> Baronie Schnakensee | C131: =IF(OR(B131="",B131="-"),"",IFERROR(VLOOKUP($A131,[1]Tabelle2!$A:$I,C$2,FALSE),"")) -> Baronin Adula von Schnakensee | D131: =IF(OR(C131="",C131="-"),"",IFERROR(VLOOKUP($A131,[1]Tabelle2!$A:$I,D$2,FALSE),"")) -> 1400 | E131: =IF(OR(D131="",D131="-"),"",IFERROR(VLOOKUP($A131,[1]Tabelle2!$A:$I,E$2,FALSE),"")) -> 50 | F131: 1450 | G131: 0.03448275862
A132: Nor-III-03-E1 | B132: =IF(OR(A132="",A132="-"),"",IFERROR(VLOOKUP($A132,[1]Tabelle2!$A:$I,B$2,FALSE),"")) -> Edlengut Weidenthal | C132: =IF(OR(B132="",B132="-"),"",IFERROR(VLOOKUP($A132,[1]Tabelle2!$A:$I,C$2,FALSE),"")) -> Edle Eilada von Weidenthal | D132: =IF(OR(C132="",C132="-"),"",IFERROR(VLOOKUP($A132,[1]Tabelle2!$A:$I,D$2,FALSE),"")) -> 250 | E132: =IF(OR(D132="",D132="-"),"",IFERROR(VLOOKUP($A132,[1]Tabelle2!$A:$I,E$2,FALSE),"")) -> 0 | F132: =IFERROR(D132+E132,"") -> 250 | G132: 0
A133: Nor-III-03-J1 | B133: =IF(OR(A133="",A133="-"),"",IFERROR(VLOOKUP($A133,[1]Tabelle2!$A:$I,B$2,FALSE),"")) -> Junkergut Richtwald | C133: =IF(OR(B133="",B133="-"),"",IFERROR(VLOOKUP($A133,[1]Tabelle2!$A:$I,C$2,FALSE),"")) -> Junker Basin von Richtwald, vertreten durch Rittfrau Zadrada von Richtwald | D133: =IF(OR(C133="",C133="-"),"",IFERROR(VLOOKUP($A133,[1]Tabelle2!$A:$I,D$2,FALSE),"")) -> 350 | E133: =IF(OR(D133="",D133="-"),"",IFERROR(VLOOKUP($A133,[1]Tabelle2!$A:$I,E$2,FALSE),"")) -> 0 | F133: 350 | G133: =IFERROR(E133/F133,"") -> 0
A134: Nor-III-04 | B134: =IF(OR(A134="",A134="-"),"",IFERROR(VLOOKUP($A134,[1]Tabelle2!$A:$I,B$2,FALSE),"")) -> Baronie Ambelmund | C134: =IF(OR(B134="",B134="-"),"",IFERROR(VLOOKUP($A134,[1]Tabelle2!$A:$I,C$2,FALSE),"")) -> Baronin Wunnemine von Fadersberg zu Ambelmund | D134: =IF(OR(C134="",C134="-"),"",IFERROR(VLOOKUP($A134,[1]Tabelle2!$A:$I,D$2,FALSE),"")) -> 1700 | E134: =IF(OR(D134="",D134="-"),"",IFERROR(VLOOKUP($A134,[1]Tabelle2!$A:$I,E$2,FALSE),"")) -> 0 | F134: 1700 | G134: 0
A135: - | B135: =IF(OR(A135="",A135="-"),"",IFERROR(VLOOKUP($A135,[1]Tabelle2!$A:$I,B$2,FALSE),"")) ->  | C135: =IF(OR(B135="",B135="-"),"",IFERROR(VLOOKUP($A135,[1]Tabelle2!$A:$I,C$2,FALSE),"")) ->  | D135: =IF(OR(C135="",C135="-"),"",IFERROR(VLOOKUP($A135,[1]Tabelle2!$A:$I,D$2,FALSE),"")) ->  | E135: =IF(OR(D135="",D135="-"),"",IFERROR(VLOOKUP($A135,[1]Tabelle2!$A:$I,E$2,FALSE),"")) -> 
A136: Nor-III-04-E1 | B136: =IF(OR(A136="",A136="-"),"",IFERROR(VLOOKUP($A136,[1]Tabelle2!$A:$I,B$2,FALSE),"")) -> Gut Fadersberg | C136: =IF(OR(B136="",B136="-"),"",IFERROR(VLOOKUP($A136,[1]Tabelle2!$A:$I,C$2,FALSE),"")) -> Baronin Wunnemine von Fadersberg zu Ambelmund | D136: =IF(OR(C136="",C136="-"),"",IFERROR(VLOOKUP($A136,[1]Tabelle2!$A:$I,D$2,FALSE),"")) -> 420 | E136: =IF(OR(D136="",D136="-"),"",IFERROR(VLOOKUP($A136,[1]Tabelle2!$A:$I,E$2,FALSE),"")) -> 0 | F136: 420 | G136: 0
A137: Nor-III-04-E2 | B137: =IF(OR(A137="",A137="-"),"",IFERROR(VLOOKUP($A137,[1]Tabelle2!$A:$I,B$2,FALSE),"")) -> Gut Tannenfels | C137: =IF(OR(B137="",B137="-"),"",IFERROR(VLOOKUP($A137,[1]Tabelle2!$A:$I,C$2,FALSE),"")) -> Celissa von Tannenfels | D137: =IF(OR(C137="",C137="-"),"",IFERROR(VLOOKUP($A137,[1]Tabelle2!$A:$I,D$2,FALSE),"")) -> 130 | E137: =IF(OR(D137="",D137="-"),"",IFERROR(VLOOKUP($A137,[1]Tabelle2!$A:$I,E$2,FALSE),"")) -> 0 | F137: 130 | G137: 0
A138: Nor-III-04-E3 | B138: =IF(OR(A138="",A138="-"),"",IFERROR(VLOOKUP($A138,[1]Tabelle2!$A:$I,B$2,FALSE),"")) -> Gut Schwarzentann | C138: =IF(OR(B138="",B138="-"),"",IFERROR(VLOOKUP($A138,[1]Tabelle2!$A:$I,C$2,FALSE),"")) -> xxx vom schwarzen Tann | D138: =IF(OR(C138="",C138="-"),"",IFERROR(VLOOKUP($A138,[1]Tabelle2!$A:$I,D$2,FALSE),"")) -> 140 | E138: =IF(OR(D138="",D138="-"),"",IFERROR(VLOOKUP($A138,[1]Tabelle2!$A:$I,E$2,FALSE),"")) -> 0 | F138: 140 | G138: 0
A139: Nor-III-04-E4 | B139: =IF(OR(A139="",A139="-"),"",IFERROR(VLOOKUP($A139,[1]Tabelle2!$A:$I,B$2,FALSE),"")) -> Rittergut Tommeltann | C139: =IF(OR(B139="",B139="-"),"",IFERROR(VLOOKUP($A139,[1]Tabelle2!$A:$I,C$2,FALSE),"")) -> xxx von Tommeltann | D139: =IF(OR(C139="",C139="-"),"",IFERROR(VLOOKUP($A139,[1]Tabelle2!$A:$I,D$2,FALSE),"")) -> 130 | E139: =IF(OR(D139="",D139="-"),"",IFERROR(VLOOKUP($A139,[1]Tabelle2!$A:$I,E$2,FALSE),"")) -> 0 | F139: 130 | G139: 0
A140: Nor-III-04-J1 | B140: =IF(OR(A140="",A140="-"),"",IFERROR(VLOOKUP($A140,[1]Tabelle2!$A:$I,B$2,FALSE),"")) -> Junkergut Lifstein | C140: =IF(OR(B140="",B140="-"),"",IFERROR(VLOOKUP($A140,[1]Tabelle2!$A:$I,C$2,FALSE),"")) -> Radulf von Lifstein | D140: =IF(OR(C140="",C140="-"),"",IFERROR(VLOOKUP($A140,[1]Tabelle2!$A:$I,D$2,FALSE),"")) -> 300 | E140: =IF(OR(D140="",D140="-"),"",IFERROR(VLOOKUP($A140,[1]Tabelle2!$A:$I,E$2,FALSE),"")) -> 0 | F140: 300 | G140: 0
A141: Nor-III-05 | B141: =IF(OR(A141="",A141="-"),"",IFERROR(VLOOKUP($A141,[1]Tabelle2!$A:$I,B$2,FALSE),"")) -> Baronie Tommelsbeuge | C141: =IF(OR(B141="",B141="-"),"",IFERROR(VLOOKUP($A141,[1]Tabelle2!$A:$I,C$2,FALSE),"")) -> Baron Geribold v. Fischwachttal | D141: =IF(OR(C141="",C141="-"),"",IFERROR(VLOOKUP($A141,[1]Tabelle2!$A:$I,D$2,FALSE),"")) -> 2000 | E141: =IF(OR(D141="",D141="-"),"",IFERROR(VLOOKUP($A141,[1]Tabelle2!$A:$I,E$2,FALSE),"")) -> 0 | F141: 2000 | G141: 0
A142: Nor-III-05-E1 | B142: =IF(OR(A142="",A142="-"),"",IFERROR(VLOOKUP($A142,[1]Tabelle2!$A:$I,B$2,FALSE),"")) -> Gut Bösalbentrutz | C142: =IF(OR(B142="",B142="-"),"",IFERROR(VLOOKUP($A142,[1]Tabelle2!$A:$I,C$2,FALSE),"")) -> Roana von Fischwachttal | D142: =IF(OR(C142="",C142="-"),"",IFERROR(VLOOKUP($A142,[1]Tabelle2!$A:$I,D$2,FALSE),"")) -> 110 | E142: =IF(OR(D142="",D142="-"),"",IFERROR(VLOOKUP($A142,[1]Tabelle2!$A:$I,E$2,FALSE),"")) -> 0 | F142: 110 | G142: 0
A143: Nor-III-05-E2 | B143: =IF(OR(A143="",A143="-"),"",IFERROR(VLOOKUP($A143,[1]Tabelle2!$A:$I,B$2,FALSE),"")) -> Gut Treuklingen | C143: =IF(OR(B143="",B143="-"),"",IFERROR(VLOOKUP($A143,[1]Tabelle2!$A:$I,C$2,FALSE),"")) -> Vögtin Frederun Lechmin von Weitenfeld | D143: =IF(OR(C143="",C143="-"),"",IFERROR(VLOOKUP($A143,[1]Tabelle2!$A:$I,D$2,FALSE),"")) -> 280 | E143: =IF(OR(D143="",D143="-"),"",IFERROR(VLOOKUP($A143,[1]Tabelle2!$A:$I,E$2,FALSE),"")) -> 0 | F143: 280 | G143: 0
A144: Nor-III-05-E3 | B144: =IF(OR(A144="",A144="-"),"",IFERROR(VLOOKUP($A144,[1]Tabelle2!$A:$I,B$2,FALSE),"")) -> Gut Tommelsfurt | C144: =IF(OR(B144="",B144="-"),"",IFERROR(VLOOKUP($A144,[1]Tabelle2!$A:$I,C$2,FALSE),"")) -> Madalin von Lerchentrutz | D144: =IF(OR(C144="",C144="-"),"",IFERROR(VLOOKUP($A144,[1]Tabelle2!$A:$I,D$2,FALSE),"")) -> 0 | E144: =IF(OR(D144="",D144="-"),"",IFERROR(VLOOKUP($A144,[1]Tabelle2!$A:$I,E$2,FALSE),"")) -> 0 | F144: 0
A145: Nor-III-05-E4 | B145: =IF(OR(A145="",A145="-"),"",IFERROR(VLOOKUP($A145,[1]Tabelle2!$A:$I,B$2,FALSE),"")) -> Rittergut Auroth | C145: =IF(OR(B145="",B145="-"),"",IFERROR(VLOOKUP($A145,[1]Tabelle2!$A:$I,C$2,FALSE),"")) -> Rittfrau Lûthara von Au-Ibenburg | D145: =IF(OR(C145="",C145="-"),"",IFERROR(VLOOKUP($A145,[1]Tabelle2!$A:$I,D$2,FALSE),"")) -> 0 | E145: =IF(OR(D145="",D145="-"),"",IFERROR(VLOOKUP($A145,[1]Tabelle2!$A:$I,E$2,FALSE),"")) -> 0 | F145: 0
A146: Nor-III-05-E5 | B146: =IF(OR(A146="",A146="-"),"",IFERROR(VLOOKUP($A146,[1]Tabelle2!$A:$I,B$2,FALSE),"")) -> Gut Brinborn | C146: =IF(OR(B146="",B146="-"),"",IFERROR(VLOOKUP($A146,[1]Tabelle2!$A:$I,C$2,FALSE),"")) -> Orden des heiligen Zorns | D146: =IF(OR(C146="",C146="-"),"",IFERROR(VLOOKUP($A146,[1]Tabelle2!$A:$I,D$2,FALSE),"")) -> 80 | E146: =IF(OR(D146="",D146="-"),"",IFERROR(VLOOKUP($A146,[1]Tabelle2!$A:$I,E$2,FALSE),"")) -> 0 | F146: 80 | G146: 0
A147: Nor-III-05-J1 | B147: =IF(OR(A147="",A147="-"),"",IFERROR(VLOOKUP($A147,[1]Tabelle2!$A:$I,B$2,FALSE),"")) -> Gräflich Bösalbentrutz | C147: =IF(OR(B147="",B147="-"),"",IFERROR(VLOOKUP($A147,[1]Tabelle2!$A:$I,C$2,FALSE),"")) -> Vögtin Irminella Ermine von Ibenburg-Eberbach | D147: =IF(OR(C147="",C147="-"),"",IFERROR(VLOOKUP($A147,[1]Tabelle2!$A:$I,D$2,FALSE),"")) -> 0 | E147: =IF(OR(D147="",D147="-"),"",IFERROR(VLOOKUP($A147,[1]Tabelle2!$A:$I,E$2,FALSE),"")) -> 0 | F147: 0
A148: Nor-III-06 | B148: =IF(OR(A148="",A148="-"),"",IFERROR(VLOOKUP($A148,[1]Tabelle2!$A:$I,B$2,FALSE),"")) -> Baronie Vairningen | C148: =IF(OR(B148="",B148="-"),"",IFERROR(VLOOKUP($A148,[1]Tabelle2!$A:$I,C$2,FALSE),"")) -> Baronin Vea Timerlain von Vairningen | D148: =IF(OR(C148="",C148="-"),"",IFERROR(VLOOKUP($A148,[1]Tabelle2!$A:$I,D$2,FALSE),"")) -> 3830 | E148: =IF(OR(D148="",D148="-"),"",IFERROR(VLOOKUP($A148,[1]Tabelle2!$A:$I,E$2,FALSE),"")) -> 90 | F148: 3920 | G148: 0.02295918367
A149: - | B149: =IF(OR(A149="",A149="-"),"",IFERROR(VLOOKUP($A149,[1]Tabelle2!$A:$I,B$2,FALSE),"")) ->  | C149: =IF(OR(B149="",B149="-"),"",IFERROR(VLOOKUP($A149,[1]Tabelle2!$A:$I,C$2,FALSE),"")) ->  | D149: =IF(OR(C149="",C149="-"),"",IFERROR(VLOOKUP($A149,[1]Tabelle2!$A:$I,D$2,FALSE),"")) ->  | E149: =IF(OR(D149="",D149="-"),"",IFERROR(VLOOKUP($A149,[1]Tabelle2!$A:$I,E$2,FALSE),"")) -> 
A150: Nor-III-06-E1 | B150: =IF(OR(A150="",A150="-"),"",IFERROR(VLOOKUP($A150,[1]Tabelle2!$A:$I,B$2,FALSE),"")) -> Domäne Vairntal | C150: =IF(OR(B150="",B150="-"),"",IFERROR(VLOOKUP($A150,[1]Tabelle2!$A:$I,C$2,FALSE),"")) -> Domänengut des Barons | D150: =IF(OR(C150="",C150="-"),"",IFERROR(VLOOKUP($A150,[1]Tabelle2!$A:$I,D$2,FALSE),"")) -> 600 | E150: =IF(OR(D150="",D150="-"),"",IFERROR(VLOOKUP($A150,[1]Tabelle2!$A:$I,E$2,FALSE),"")) -> 50 | F150: 650 | G150: 0.07692307692
A151: Nor-III-06-E2 | B151: =IF(OR(A151="",A151="-"),"",IFERROR(VLOOKUP($A151,[1]Tabelle2!$A:$I,B$2,FALSE),"")) -> Rittergut Gellerstock | C151: =IF(OR(B151="",B151="-"),"",IFERROR(VLOOKUP($A151,[1]Tabelle2!$A:$I,C$2,FALSE),"")) -> vakant | D151: =IF(OR(C151="",C151="-"),"",IFERROR(VLOOKUP($A151,[1]Tabelle2!$A:$I,D$2,FALSE),"")) -> 120 | E151: =IF(OR(D151="",D151="-"),"",IFERROR(VLOOKUP($A151,[1]Tabelle2!$A:$I,E$2,FALSE),"")) -> 0 | F151: 120 | G151: 0
A152: Nor-III-06-E3 | B152: =IF(OR(A152="",A152="-"),"",IFERROR(VLOOKUP($A152,[1]Tabelle2!$A:$I,B$2,FALSE),"")) -> Burg Rauestahl | C152: =IF(OR(B152="",B152="-"),"",IFERROR(VLOOKUP($A152,[1]Tabelle2!$A:$I,C$2,FALSE),"")) -> Raubritter Gundewald von Rauestahl | D152: =IF(OR(C152="",C152="-"),"",IFERROR(VLOOKUP($A152,[1]Tabelle2!$A:$I,D$2,FALSE),"")) -> 50 | E152: =IF(OR(D152="",D152="-"),"",IFERROR(VLOOKUP($A152,[1]Tabelle2!$A:$I,E$2,FALSE),"")) -> 0 | F152: 50 | G152: 0
A153: Nor-III-06-E4 | B153: =IF(OR(A153="",A153="-"),"",IFERROR(VLOOKUP($A153,[1]Tabelle2!$A:$I,B$2,FALSE),"")) -> Rittergut Weihern | C153: =IF(OR(B153="",B153="-"),"",IFERROR(VLOOKUP($A153,[1]Tabelle2!$A:$I,C$2,FALSE),"")) -> Ritter Adelrat Thomundson | D153: =IF(OR(C153="",C153="-"),"",IFERROR(VLOOKUP($A153,[1]Tabelle2!$A:$I,D$2,FALSE),"")) -> 150 | E153: =IF(OR(D153="",D153="-"),"",IFERROR(VLOOKUP($A153,[1]Tabelle2!$A:$I,E$2,FALSE),"")) -> 0 | F153: 150 | G153: 0
A154: Nor-III-06-E5 | B154: =IF(OR(A154="",A154="-"),"",IFERROR(VLOOKUP($A154,[1]Tabelle2!$A:$I,B$2,FALSE),"")) -> Edlengut Effertingen | C154: =IF(OR(B154="",B154="-"),"",IFERROR(VLOOKUP($A154,[1]Tabelle2!$A:$I,C$2,FALSE),"")) -> Baron Basin von Richtwald, vertreten durch Ritter Runegard vom Schwarzen Quell | D154: =IF(OR(C154="",C154="-"),"",IFERROR(VLOOKUP($A154,[1]Tabelle2!$A:$I,D$2,FALSE),"")) -> 450 | E154: =IF(OR(D154="",D154="-"),"",IFERROR(VLOOKUP($A154,[1]Tabelle2!$A:$I,E$2,FALSE),"")) -> 0 | F154: 450 | G154: 0
A155: Nor-III-06-E6 | B155: =IF(OR(A155="",A155="-"),"",IFERROR(VLOOKUP($A155,[1]Tabelle2!$A:$I,B$2,FALSE),"")) -> Rittergut Waldenberg | C155: =IF(OR(B155="",B155="-"),"",IFERROR(VLOOKUP($A155,[1]Tabelle2!$A:$I,C$2,FALSE),"")) -> Rittfrau Riochhild von Fuchsberg | D155: =IF(OR(C155="",C155="-"),"",IFERROR(VLOOKUP($A155,[1]Tabelle2!$A:$I,D$2,FALSE),"")) -> 120 | E155: =IF(OR(D155="",D155="-"),"",IFERROR(VLOOKUP($A155,[1]Tabelle2!$A:$I,E$2,FALSE),"")) -> 0 | F155: 120 | G155: 0
A156: Nor-III-06-E7 | B156: =IF(OR(A156="",A156="-"),"",IFERROR(VLOOKUP($A156,[1]Tabelle2!$A:$I,B$2,FALSE),"")) -> Edlengut Minningen | C156: =IF(OR(B156="",B156="-"),"",IFERROR(VLOOKUP($A156,[1]Tabelle2!$A:$I,C$2,FALSE),"")) -> Sortosch, Sohn des Aborax | D156: =IF(OR(C156="",C156="-"),"",IFERROR(VLOOKUP($A156,[1]Tabelle2!$A:$I,D$2,FALSE),"")) -> 150 | E156: =IF(OR(D156="",D156="-"),"",IFERROR(VLOOKUP($A156,[1]Tabelle2!$A:$I,E$2,FALSE),"")) -> 50 | F156: 200 | G156: 0.25
A157: Nor-III-06-E8 | B157: =IF(OR(A157="",A157="-"),"",IFERROR(VLOOKUP($A157,[1]Tabelle2!$A:$I,B$2,FALSE),"")) -> Edlengut Saibeltal | C157: =IF(OR(B157="",B157="-"),"",IFERROR(VLOOKUP($A157,[1]Tabelle2!$A:$I,C$2,FALSE),"")) -> Durinja von Saibeltal | D157: =IF(OR(C157="",C157="-"),"",IFERROR(VLOOKUP($A157,[1]Tabelle2!$A:$I,D$2,FALSE),"")) -> 200 | E157: =IF(OR(D157="",D157="-"),"",IFERROR(VLOOKUP($A157,[1]Tabelle2!$A:$I,E$2,FALSE),"")) -> 0 | F157: 200 | G157: 0
A158: Nor-III-06-E9 | B158: =IF(OR(A158="",A158="-"),"",IFERROR(VLOOKUP($A158,[1]Tabelle2!$A:$I,B$2,FALSE),"")) -> Rittergut Girswald | C158: =IF(OR(B158="",B158="-"),"",IFERROR(VLOOKUP($A158,[1]Tabelle2!$A:$I,C$2,FALSE),"")) -> vakant | D158: =IF(OR(C158="",C158="-"),"",IFERROR(VLOOKUP($A158,[1]Tabelle2!$A:$I,D$2,FALSE),"")) -> 150 | E158: =IF(OR(D158="",D158="-"),"",IFERROR(VLOOKUP($A158,[1]Tabelle2!$A:$I,E$2,FALSE),"")) -> 0 | F158: 150 | G158: 0
A159: Nor-III-06-E10 | B159: =IF(OR(A159="",A159="-"),"",IFERROR(VLOOKUP($A159,[1]Tabelle2!$A:$I,B$2,FALSE),"")) -> Edlengut Kranickau | C159: =IF(OR(B159="",B159="-"),"",IFERROR(VLOOKUP($A159,[1]Tabelle2!$A:$I,C$2,FALSE),"")) -> Barnabas von Kranickau | D159: =IF(OR(C159="",C159="-"),"",IFERROR(VLOOKUP($A159,[1]Tabelle2!$A:$I,D$2,FALSE),"")) -> 170 | E159: =IF(OR(D159="",D159="-"),"",IFERROR(VLOOKUP($A159,[1]Tabelle2!$A:$I,E$2,FALSE),"")) -> 0 | F159: 170 | G159: 0
A160: Nor-III-06-E11 | B160: =IF(OR(A160="",A160="-"),"",IFERROR(VLOOKUP($A160,[1]Tabelle2!$A:$I,B$2,FALSE),"")) -> Rittergut Avesstein | C160: =IF(OR(B160="",B160="-"),"",IFERROR(VLOOKUP($A160,[1]Tabelle2!$A:$I,C$2,FALSE),"")) -> Rittfrau Jocasta von Salmfang | D160: =IF(OR(C160="",C160="-"),"",IFERROR(VLOOKUP($A160,[1]Tabelle2!$A:$I,D$2,FALSE),"")) -> 150 | E160: =IF(OR(D160="",D160="-"),"",IFERROR(VLOOKUP($A160,[1]Tabelle2!$A:$I,E$2,FALSE),"")) -> 10 | F160: 160 | G160: 0.0625
A161: Nor-III-06-E12 | B161: =IF(OR(A161="",A161="-"),"",IFERROR(VLOOKUP($A161,[1]Tabelle2!$A:$I,B$2,FALSE),"")) -> Rittergut Starkwalden | C161: =IF(OR(B161="",B161="-"),"",IFERROR(VLOOKUP($A161,[1]Tabelle2!$A:$I,C$2,FALSE),"")) -> Ritter Radbot von Starkwalden | D161: =IF(OR(C161="",C161="-"),"",IFERROR(VLOOKUP($A161,[1]Tabelle2!$A:$I,D$2,FALSE),"")) -> 150 | E161: =IF(OR(D161="",D161="-"),"",IFERROR(VLOOKUP($A161,[1]Tabelle2!$A:$I,E$2,FALSE),"")) -> 0 | F161: 150 | G161: 0
A162: Nor-III-06-E13 | B162: =IF(OR(A162="",A162="-"),"",IFERROR(VLOOKUP($A162,[1]Tabelle2!$A:$I,B$2,FALSE),"")) -> Rittergut Waidwacht | C162: =IF(OR(B162="",B162="-"),"",IFERROR(VLOOKUP($A162,[1]Tabelle2!$A:$I,C$2,FALSE),"")) -> verwaltet durch Idra Thomundson | D162: =IF(OR(C162="",C162="-"),"",IFERROR(VLOOKUP($A162,[1]Tabelle2!$A:$I,D$2,FALSE),"")) -> 130 | E162: =IF(OR(D162="",D162="-"),"",IFERROR(VLOOKUP($A162,[1]Tabelle2!$A:$I,E$2,FALSE),"")) -> 10 | F162: 140 | G162: 0.07142857143
A163: Nor-III-06-J1 | B163: =IF(OR(A163="",A163="-"),"",IFERROR(VLOOKUP($A163,[1]Tabelle2!$A:$I,B$2,FALSE),"")) -> Junkergut Neu-Foerttingen | C163: =IF(OR(B163="",B163="-"),"",IFERROR(VLOOKUP($A163,[1]Tabelle2!$A:$I,C$2,FALSE),"")) -> Junker Dragowin Timerlain von Vairningen | D163: =IF(OR(C163="",C163="-"),"",IFERROR(VLOOKUP($A163,[1]Tabelle2!$A:$I,D$2,FALSE),"")) -> 500 | E163: =IF(OR(D163="",D163="-"),"",IFERROR(VLOOKUP($A163,[1]Tabelle2!$A:$I,E$2,FALSE),"")) -> 10 | F163: 510 | G163: 0.01960784314
A164: Nor-III-06-J1-R1 | B164: =IF(OR(A164="",A164="-"),"",IFERROR(VLOOKUP($A164,[1]Tabelle2!$A:$I,B$2,FALSE),"")) -> Ritterlich Lichterfeld | C164: =IF(OR(B164="",B164="-"),"",IFERROR(VLOOKUP($A164,[1]Tabelle2!$A:$I,C$2,FALSE),"")) -> Ritter Diemut Rondmar vom Schwarzen Quell | D164: =IF(OR(C164="",C164="-"),"",IFERROR(VLOOKUP($A164,[1]Tabelle2!$A:$I,D$2,FALSE),"")) -> 125 | E164: =IF(OR(D164="",D164="-"),"",IFERROR(VLOOKUP($A164,[1]Tabelle2!$A:$I,E$2,FALSE),"")) -> 0 | F164: 125 | G164: 0
A165: Nor-III-06-J1-R2 | B165: =IF(OR(A165="",A165="-"),"",IFERROR(VLOOKUP($A165,[1]Tabelle2!$A:$I,B$2,FALSE),"")) -> Ritterlich Eichwalde | C165: =IF(OR(B165="",B165="-"),"",IFERROR(VLOOKUP($A165,[1]Tabelle2!$A:$I,C$2,FALSE),"")) -> Ritter Wikterp von Caldenburg | D165: =IF(OR(C165="",C165="-"),"",IFERROR(VLOOKUP($A165,[1]Tabelle2!$A:$I,D$2,FALSE),"")) -> 150 | E165: =IF(OR(D165="",D165="-"),"",IFERROR(VLOOKUP($A165,[1]Tabelle2!$A:$I,E$2,FALSE),"")) -> 0 | F165: 150 | G165: 0
A166: Nor-III-07 | B166: =IF(OR(A166="",A166="-"),"",IFERROR(VLOOKUP($A166,[1]Tabelle2!$A:$I,B$2,FALSE),"")) -> Baronie Firnholz | C166: =IF(OR(B166="",B166="-"),"",IFERROR(VLOOKUP($A166,[1]Tabelle2!$A:$I,C$2,FALSE),"")) -> Baronin Fedora Madalin vom Firnholz | D166: =IF(OR(C166="",C166="-"),"",IFERROR(VLOOKUP($A166,[1]Tabelle2!$A:$I,D$2,FALSE),"")) -> 1400 | E166: =IF(OR(D166="",D166="-"),"",IFERROR(VLOOKUP($A166,[1]Tabelle2!$A:$I,E$2,FALSE),"")) -> 200 | F166: 1600 | G166: 0.125
A167: Nor-III-07-E1 | B167: =IF(OR(A167="",A167="-"),"",IFERROR(VLOOKUP($A167,[1]Tabelle2!$A:$I,B$2,FALSE),"")) -> Gut Eberswalde | C167: =IF(OR(B167="",B167="-"),"",IFERROR(VLOOKUP($A167,[1]Tabelle2!$A:$I,C$2,FALSE),"")) -> Baronin Fedora von Firnholz, vertreten durch Ritter Belfionn Eichblatt | D167: =IF(OR(C167="",C167="-"),"",IFERROR(VLOOKUP($A167,[1]Tabelle2!$A:$I,D$2,FALSE),"")) -> 400 | E167: =IF(OR(D167="",D167="-"),"",IFERROR(VLOOKUP($A167,[1]Tabelle2!$A:$I,E$2,FALSE),"")) -> 0 | F167: 400 | G167: 0
A168: Nor-III-07-E2 | B168: =IF(OR(A168="",A168="-"),"",IFERROR(VLOOKUP($A168,[1]Tabelle2!$A:$I,B$2,FALSE),"")) -> Rittergut Föhrenberg | C168: =IF(OR(B168="",B168="-"),"",IFERROR(VLOOKUP($A168,[1]Tabelle2!$A:$I,C$2,FALSE),"")) -> Baronin Fedora von Firnholz, vertreten durch Ritter Diethard von Zairingen | D168: =IF(OR(C168="",C168="-"),"",IFERROR(VLOOKUP($A168,[1]Tabelle2!$A:$I,D$2,FALSE),"")) -> 300 | E168: =IF(OR(D168="",D168="-"),"",IFERROR(VLOOKUP($A168,[1]Tabelle2!$A:$I,E$2,FALSE),"")) -> 0 | F168: 300 | G168: 0
A169: Nor-III-07-E3 | B169: =IF(OR(A169="",A169="-"),"",IFERROR(VLOOKUP($A169,[1]Tabelle2!$A:$I,B$2,FALSE),"")) -> Stadt & Land Gevelsberg | C169: =IF(OR(B169="",B169="-"),"",IFERROR(VLOOKUP($A169,[1]Tabelle2!$A:$I,C$2,FALSE),"")) -> Baronin Fedora Madalin vom Firnholz | D169: =IF(OR(C169="",C169="-"),"",IFERROR(VLOOKUP($A169,[1]Tabelle2!$A:$I,D$2,FALSE),"")) -> 400 | E169: =IF(OR(D169="",D169="-"),"",IFERROR(VLOOKUP($A169,[1]Tabelle2!$A:$I,E$2,FALSE),"")) -> 0 | F169: 400 | G169: 0
A170: Nor-III-07-J1 | B170: =IF(OR(A170="",A170="-"),"",IFERROR(VLOOKUP($A170,[1]Tabelle2!$A:$I,B$2,FALSE),"")) -> Gut Reussenstein | C170: =IF(OR(B170="",B170="-"),"",IFERROR(VLOOKUP($A170,[1]Tabelle2!$A:$I,C$2,FALSE),"")) -> Vogt Bardo Aich | D170: =IF(OR(C170="",C170="-"),"",IFERROR(VLOOKUP($A170,[1]Tabelle2!$A:$I,D$2,FALSE),"")) -> 150 | E170: =IF(OR(D170="",D170="-"),"",IFERROR(VLOOKUP($A170,[1]Tabelle2!$A:$I,E$2,FALSE),"")) -> 0 | F170: 150 | G170: 0
A171: Nor-III-07-J2 | B171: =IF(OR(A171="",A171="-"),"",IFERROR(VLOOKUP($A171,[1]Tabelle2!$A:$I,B$2,FALSE),"")) -> Gut Rothammer | C171: =IF(OR(B171="",B171="-"),"",IFERROR(VLOOKUP($A171,[1]Tabelle2!$A:$I,C$2,FALSE),"")) -> Vogt Arjuk von Rothammer | D171: =IF(OR(C171="",C171="-"),"",IFERROR(VLOOKUP($A171,[1]Tabelle2!$A:$I,D$2,FALSE),"")) -> 150 | E171: =IF(OR(D171="",D171="-"),"",IFERROR(VLOOKUP($A171,[1]Tabelle2!$A:$I,E$2,FALSE),"")) -> 0 | F171: 150 | G171: 0
A172: Nor-III-08 | B172: =IF(OR(A172="",A172="-"),"",IFERROR(VLOOKUP($A172,[1]Tabelle2!$A:$I,B$2,FALSE),"")) -> Baronie Urbeltor | C172: =IF(OR(B172="",B172="-"),"",IFERROR(VLOOKUP($A172,[1]Tabelle2!$A:$I,C$2,FALSE),"")) -> Baron Hal Praiodan Tsafelde von Urbeltor/Vogt Koradin von Schellenstein | D172: =IF(OR(C172="",C172="-"),"",IFERROR(VLOOKUP($A172,[1]Tabelle2!$A:$I,D$2,FALSE),"")) -> 1100 | E172: =IF(OR(D172="",D172="-"),"",IFERROR(VLOOKUP($A172,[1]Tabelle2!$A:$I,E$2,FALSE),"")) -> 150 | F172: 1250 | G172: 0.12
A173: Nor-III-09 | B173: =IF(OR(A173="",A173="-"),"",IFERROR(VLOOKUP($A173,[1]Tabelle2!$A:$I,B$2,FALSE),"")) -> Baronie Kranick | C173: =IF(OR(B173="",B173="-"),"",IFERROR(VLOOKUP($A173,[1]Tabelle2!$A:$I,C$2,FALSE),"")) -> Baronin Iriane Madalin von Kranick zum Kranichfluchs | D173: =IF(OR(C173="",C173="-"),"",IFERROR(VLOOKUP($A173,[1]Tabelle2!$A:$I,D$2,FALSE),"")) -> 2000 | E173: =IF(OR(D173="",D173="-"),"",IFERROR(VLOOKUP($A173,[1]Tabelle2!$A:$I,E$2,FALSE),"")) -> 50 | F173: 2050 | G173: 0.0243902439
A174: Nor-III-09-E1 | B174: =IF(OR(A174="",A174="-"),"",IFERROR(VLOOKUP($A174,[1]Tabelle2!$A:$I,B$2,FALSE),"")) -> Rittergut Kranickteich | C174: =IF(OR(B174="",B174="-"),"",IFERROR(VLOOKUP($A174,[1]Tabelle2!$A:$I,C$2,FALSE),"")) -> Ritter Fulco von Kranickteich | D174: =IF(OR(C174="",C174="-"),"",IFERROR(VLOOKUP($A174,[1]Tabelle2!$A:$I,D$2,FALSE),"")) -> 220 | E174: =IF(OR(D174="",D174="-"),"",IFERROR(VLOOKUP($A174,[1]Tabelle2!$A:$I,E$2,FALSE),"")) -> 0 | F174: 220 | G174: 0
A175: Nor-III-09-E2 | B175: =IF(OR(A175="",A175="-"),"",IFERROR(VLOOKUP($A175,[1]Tabelle2!$A:$I,B$2,FALSE),"")) -> Rittergut Aelgarsfels | C175: =IF(OR(B175="",B175="-"),"",IFERROR(VLOOKUP($A175,[1]Tabelle2!$A:$I,C$2,FALSE),"")) -> Ritter Darion von Aelgarsfels | D175: =IF(OR(C175="",C175="-"),"",IFERROR(VLOOKUP($A175,[1]Tabelle2!$A:$I,D$2,FALSE),"")) -> 200 | E175: =IF(OR(D175="",D175="-"),"",IFERROR(VLOOKUP($A175,[1]Tabelle2!$A:$I,E$2,FALSE),"")) -> 0 | F175: 200 | G175: 0
A176: Nor-III-09-E3 | B176: =IF(OR(A176="",A176="-"),"",IFERROR(VLOOKUP($A176,[1]Tabelle2!$A:$I,B$2,FALSE),"")) -> Rittergut Viererlen | C176: =IF(OR(B176="",B176="-"),"",IFERROR(VLOOKUP($A176,[1]Tabelle2!$A:$I,C$2,FALSE),"")) -> Roana von Viererlen | D176: =IF(OR(C176="",C176="-"),"",IFERROR(VLOOKUP($A176,[1]Tabelle2!$A:$I,D$2,FALSE),"")) -> 350 | E176: =IF(OR(D176="",D176="-"),"",IFERROR(VLOOKUP($A176,[1]Tabelle2!$A:$I,E$2,FALSE),"")) -> 0 | F176: 350 | G176: 0
A177: Nor-III-09-E4 | B177: =IF(OR(A177="",A177="-"),"",IFERROR(VLOOKUP($A177,[1]Tabelle2!$A:$I,B$2,FALSE),"")) -> Edlengut Harschfeld | C177: =IF(OR(B177="",B177="-"),"",IFERROR(VLOOKUP($A177,[1]Tabelle2!$A:$I,C$2,FALSE),"")) -> - | D177: =IF(OR(C177="",C177="-"),"",IFERROR(VLOOKUP($A177,[1]Tabelle2!$A:$I,D$2,FALSE),"")) ->  | E177: =IF(OR(D177="",D177="-"),"",IFERROR(VLOOKUP($A177,[1]Tabelle2!$A:$I,E$2,FALSE),"")) -> 
A178: Nor-III-09-E5 | B178: =IF(OR(A178="",A178="-"),"",IFERROR(VLOOKUP($A178,[1]Tabelle2!$A:$I,B$2,FALSE),"")) -> Edlengut Schwarzweiher | C178: =IF(OR(B178="",B178="-"),"",IFERROR(VLOOKUP($A178,[1]Tabelle2!$A:$I,C$2,FALSE),"")) -> - | D178: =IF(OR(C178="",C178="-"),"",IFERROR(VLOOKUP($A178,[1]Tabelle2!$A:$I,D$2,FALSE),"")) ->  | E178: =IF(OR(D178="",D178="-"),"",IFERROR(VLOOKUP($A178,[1]Tabelle2!$A:$I,E$2,FALSE),"")) -> 
A179: Nor-III-09-E6 | B179: =IF(OR(A179="",A179="-"),"",IFERROR(VLOOKUP($A179,[1]Tabelle2!$A:$I,B$2,FALSE),"")) -> Burg Hohenkranick | C179: =IF(OR(B179="",B179="-"),"",IFERROR(VLOOKUP($A179,[1]Tabelle2!$A:$I,C$2,FALSE),"")) -> Domänengut des Barons | D179: =IF(OR(C179="",C179="-"),"",IFERROR(VLOOKUP($A179,[1]Tabelle2!$A:$I,D$2,FALSE),"")) -> 540 | E179: =IF(OR(D179="",D179="-"),"",IFERROR(VLOOKUP($A179,[1]Tabelle2!$A:$I,E$2,FALSE),"")) -> 0 | F179: 540 | G179: 0
A180: Nor-III-09-E7 | B180: =IF(OR(A180="",A180="-"),"",IFERROR(VLOOKUP($A180,[1]Tabelle2!$A:$I,B$2,FALSE),"")) -> ehem. Gut Dunkelstein | C180: =IF(OR(B180="",B180="-"),"",IFERROR(VLOOKUP($A180,[1]Tabelle2!$A:$I,C$2,FALSE),"")) -> - | D180: =IF(OR(C180="",C180="-"),"",IFERROR(VLOOKUP($A180,[1]Tabelle2!$A:$I,D$2,FALSE),"")) ->  | E180: =IF(OR(D180="",D180="-"),"",IFERROR(VLOOKUP($A180,[1]Tabelle2!$A:$I,E$2,FALSE),"")) -> 
A181: Nor-III-10bG | B181: =IF(OR(A181="",A181="-"),"",IFERROR(VLOOKUP($A181,[1]Tabelle2!$A:$I,B$2,FALSE),"")) -> Grafenmark Gratenfels | C181: =IF(OR(B181="",B181="-"),"",IFERROR(VLOOKUP($A181,[1]Tabelle2!$A:$I,C$2,FALSE),"")) -> Landgraf Alrik Custodias-Greifax, vertreten durch Vogt Melcher von Ibenburg-Ibenburg | D181: =IF(OR(C181="",C181="-"),"",IFERROR(VLOOKUP($A181,[1]Tabelle2!$A:$I,D$2,FALSE),"")) -> 9800 | E181: =IF(OR(D181="",D181="-"),"",IFERROR(VLOOKUP($A181,[1]Tabelle2!$A:$I,E$2,FALSE),"")) -> 150 | F181: 9950 | G181: 0.01507537688
A182: Nor-III-10aR | B182: =IF(OR(A182="",A182="-"),"",IFERROR(VLOOKUP($A182,[1]Tabelle2!$A:$I,B$2,FALSE),"")) -> Stadt Gratenfels | C182: =IF(OR(B182="",B182="-"),"",IFERROR(VLOOKUP($A182,[1]Tabelle2!$A:$I,C$2,FALSE),"")) -> Landgraf Alrik Custodias-Greifax, vertreten durch Stadtmeister Jast Iseward von Brandans Stein | D182: =IF(OR(C182="",C182="-"),"",IFERROR(VLOOKUP($A182,[1]Tabelle2!$A:$I,D$2,FALSE),"")) -> 2200 | E182: =IF(OR(D182="",D182="-"),"",IFERROR(VLOOKUP($A182,[1]Tabelle2!$A:$I,E$2,FALSE),"")) -> 50 | F182: 2250 | G182: 0.02222222222
A183: Nor-III-10bG-J1 | B183: =IF(OR(A183="",A183="-"),"",IFERROR(VLOOKUP($A183,[1]Tabelle2!$A:$I,B$2,FALSE),"")) -> Junkergut Koschstein | C183: =IF(OR(B183="",B183="-"),"",IFERROR(VLOOKUP($A183,[1]Tabelle2!$A:$I,C$2,FALSE),"")) -> - | D183: =IF(OR(C183="",C183="-"),"",IFERROR(VLOOKUP($A183,[1]Tabelle2!$A:$I,D$2,FALSE),"")) ->  | E183: =IF(OR(D183="",D183="-"),"",IFERROR(VLOOKUP($A183,[1]Tabelle2!$A:$I,E$2,FALSE),"")) -> 
A184: Nor-III-10bG-J2 | B184: =IF(OR(A184="",A184="-"),"",IFERROR(VLOOKUP($A184,[1]Tabelle2!$A:$I,B$2,FALSE),"")) -> Junkergut Erzenschöffer | C184: =IF(OR(B184="",B184="-"),"",IFERROR(VLOOKUP($A184,[1]Tabelle2!$A:$I,C$2,FALSE),"")) -> - | D184: =IF(OR(C184="",C184="-"),"",IFERROR(VLOOKUP($A184,[1]Tabelle2!$A:$I,D$2,FALSE),"")) ->  | E184: =IF(OR(D184="",D184="-"),"",IFERROR(VLOOKUP($A184,[1]Tabelle2!$A:$I,E$2,FALSE),"")) -> 
A185: Nor-III-10bG-J3 | B185: =IF(OR(A185="",A185="-"),"",IFERROR(VLOOKUP($A185,[1]Tabelle2!$A:$I,B$2,FALSE),"")) -> Junkergut Neukrashof | C185: =IF(OR(B185="",B185="-"),"",IFERROR(VLOOKUP($A185,[1]Tabelle2!$A:$I,C$2,FALSE),"")) -> Oldebor Greifax | D185: =IF(OR(C185="",C185="-"),"",IFERROR(VLOOKUP($A185,[1]Tabelle2!$A:$I,D$2,FALSE),"")) -> 0 | E185: =IF(OR(D185="",D185="-"),"",IFERROR(VLOOKUP($A185,[1]Tabelle2!$A:$I,E$2,FALSE),"")) -> 0 | F185: 0
A186: Nor-III-10bG-E1 | B186: =IF(OR(A186="",A186="-"),"",IFERROR(VLOOKUP($A186,[1]Tabelle2!$A:$I,B$2,FALSE),"")) -> Edlengut Grenzmark | C186: =IF(OR(B186="",B186="-"),"",IFERROR(VLOOKUP($A186,[1]Tabelle2!$A:$I,C$2,FALSE),"")) -> Gradfried von Kargenstein | D186: =IF(OR(C186="",C186="-"),"",IFERROR(VLOOKUP($A186,[1]Tabelle2!$A:$I,D$2,FALSE),"")) -> 290 | E186: =IF(OR(D186="",D186="-"),"",IFERROR(VLOOKUP($A186,[1]Tabelle2!$A:$I,E$2,FALSE),"")) -> 0 | F186: 290 | G186: 0
A187: Nor-III-10bG-E2 | B187: =IF(OR(A187="",A187="-"),"",IFERROR(VLOOKUP($A187,[1]Tabelle2!$A:$I,B$2,FALSE),"")) -> Edlengut Buchenweiher | C187: =IF(OR(B187="",B187="-"),"",IFERROR(VLOOKUP($A187,[1]Tabelle2!$A:$I,C$2,FALSE),"")) -> - | D187: =IF(OR(C187="",C187="-"),"",IFERROR(VLOOKUP($A187,[1]Tabelle2!$A:$I,D$2,FALSE),"")) ->  | E187: =IF(OR(D187="",D187="-"),"",IFERROR(VLOOKUP($A187,[1]Tabelle2!$A:$I,E$2,FALSE),"")) -> 
A188: Nor-III-11 | B188: =IF(OR(A188="",A188="-"),"",IFERROR(VLOOKUP($A188,[1]Tabelle2!$A:$I,B$2,FALSE),"")) -> Baronie Rickenhausen | C188: =IF(OR(B188="",B188="-"),"",IFERROR(VLOOKUP($A188,[1]Tabelle2!$A:$I,C$2,FALSE),"")) -> Baronin Thalisa von Rickenhausen | D188: =IF(OR(C188="",C188="-"),"",IFERROR(VLOOKUP($A188,[1]Tabelle2!$A:$I,D$2,FALSE),"")) -> 6900 | E188: =IF(OR(D188="",D188="-"),"",IFERROR(VLOOKUP($A188,[1]Tabelle2!$A:$I,E$2,FALSE),"")) -> 0 | F188: 6900 | G188: 0
A189: - | B189: =IF(OR(A189="",A189="-"),"",IFERROR(VLOOKUP($A189,[1]Tabelle2!$A:$I,B$2,FALSE),"")) ->  | C189: =IF(OR(B189="",B189="-"),"",IFERROR(VLOOKUP($A189,[1]Tabelle2!$A:$I,C$2,FALSE),"")) ->  | D189: =IF(OR(C189="",C189="-"),"",IFERROR(VLOOKUP($A189,[1]Tabelle2!$A:$I,D$2,FALSE),"")) ->  | E189: =IF(OR(D189="",D189="-"),"",IFERROR(VLOOKUP($A189,[1]Tabelle2!$A:$I,E$2,FALSE),"")) -> 
A190: Nor-III-11-E1 | B190: =IF(OR(A190="",A190="-"),"",IFERROR(VLOOKUP($A190,[1]Tabelle2!$A:$I,B$2,FALSE),"")) -> Edlengut Hottenbusch | C190: =IF(OR(B190="",B190="-"),"",IFERROR(VLOOKUP($A190,[1]Tabelle2!$A:$I,C$2,FALSE),"")) -> Tar'anam sin Corsacca | D190: =IF(OR(C190="",C190="-"),"",IFERROR(VLOOKUP($A190,[1]Tabelle2!$A:$I,D$2,FALSE),"")) -> 50 | E190: =IF(OR(D190="",D190="-"),"",IFERROR(VLOOKUP($A190,[1]Tabelle2!$A:$I,E$2,FALSE),"")) -> 0 | F190: 50 | G190: 0
A191: Nor-III-11-E2 | B191: =IF(OR(A191="",A191="-"),"",IFERROR(VLOOKUP($A191,[1]Tabelle2!$A:$I,B$2,FALSE),"")) -> Edlengut Stimpenhain | C191: =IF(OR(B191="",B191="-"),"",IFERROR(VLOOKUP($A191,[1]Tabelle2!$A:$I,C$2,FALSE),"")) -> Edle Marodja von Stimpenhain | D191: =IF(OR(C191="",C191="-"),"",IFERROR(VLOOKUP($A191,[1]Tabelle2!$A:$I,D$2,FALSE),"")) -> 80 | E191: =IF(OR(D191="",D191="-"),"",IFERROR(VLOOKUP($A191,[1]Tabelle2!$A:$I,E$2,FALSE),"")) -> 0 | F191: 80 | G191: 0
A192: Nor-III-12 | B192: =IF(OR(A192="",A192="-"),"",IFERROR(VLOOKUP($A192,[1]Tabelle2!$A:$I,B$2,FALSE),"")) -> Baronie Witzichenberg | C192: =IF(OR(B192="",B192="-"),"",IFERROR(VLOOKUP($A192,[1]Tabelle2!$A:$I,C$2,FALSE),"")) -> Baronin Roana Eberwulf von Tannwirk | D192: =IF(OR(C192="",C192="-"),"",IFERROR(VLOOKUP($A192,[1]Tabelle2!$A:$I,D$2,FALSE),"")) -> 8500 | E192: =IF(OR(D192="",D192="-"),"",IFERROR(VLOOKUP($A192,[1]Tabelle2!$A:$I,E$2,FALSE),"")) -> 0 | F192: 8500 | G192: 0
A193: - | B193: =IF(OR(A193="",A193="-"),"",IFERROR(VLOOKUP($A193,[1]Tabelle2!$A:$I,B$2,FALSE),"")) ->  | C193: =IF(OR(B193="",B193="-"),"",IFERROR(VLOOKUP($A193,[1]Tabelle2!$A:$I,C$2,FALSE),"")) ->  | D193: =IF(OR(C193="",C193="-"),"",IFERROR(VLOOKUP($A193,[1]Tabelle2!$A:$I,D$2,FALSE),"")) ->  | E193: =IF(OR(D193="",D193="-"),"",IFERROR(VLOOKUP($A193,[1]Tabelle2!$A:$I,E$2,FALSE),"")) -> 
A194: Nor-III-12-E1 | B194: =IF(OR(A194="",A194="-"),"",IFERROR(VLOOKUP($A194,[1]Tabelle2!$A:$I,B$2,FALSE),"")) -> - | C194: =IF(OR(B194="",B194="-"),"",IFERROR(VLOOKUP($A194,[1]Tabelle2!$A:$I,C$2,FALSE),"")) ->  | D194: =IF(OR(C194="",C194="-"),"",IFERROR(VLOOKUP($A194,[1]Tabelle2!$A:$I,D$2,FALSE),"")) ->  | E194: =IF(OR(D194="",D194="-"),"",IFERROR(VLOOKUP($A194,[1]Tabelle2!$A:$I,E$2,FALSE),"")) -> 
A195: Nor-III-12-E2 | B195: =IF(OR(A195="",A195="-"),"",IFERROR(VLOOKUP($A195,[1]Tabelle2!$A:$I,B$2,FALSE),"")) -> Edlengut Drachenstieg | C195: =IF(OR(B195="",B195="-"),"",IFERROR(VLOOKUP($A195,[1]Tabelle2!$A:$I,C$2,FALSE),"")) -> Edle Nya da Re von Drachentrutz | D195: =IF(OR(C195="",C195="-"),"",IFERROR(VLOOKUP($A195,[1]Tabelle2!$A:$I,D$2,FALSE),"")) -> 0 | E195: =IF(OR(D195="",D195="-"),"",IFERROR(VLOOKUP($A195,[1]Tabelle2!$A:$I,E$2,FALSE),"")) -> 0 | F195: 0
A196: Nor-III-12-E3 | B196: =IF(OR(A196="",A196="-"),"",IFERROR(VLOOKUP($A196,[1]Tabelle2!$A:$I,B$2,FALSE),"")) -> Edlengut Kreuzweiher | C196: =IF(OR(B196="",B196="-"),"",IFERROR(VLOOKUP($A196,[1]Tabelle2!$A:$I,C$2,FALSE),"")) -> - | D196: =IF(OR(C196="",C196="-"),"",IFERROR(VLOOKUP($A196,[1]Tabelle2!$A:$I,D$2,FALSE),"")) ->  | E196: =IF(OR(D196="",D196="-"),"",IFERROR(VLOOKUP($A196,[1]Tabelle2!$A:$I,E$2,FALSE),"")) ->  | F196: =IFERROR(D196+E196,"") -> 
A197: Nor-III-12-E4 | B197: =IF(OR(A197="",A197="-"),"",IFERROR(VLOOKUP($A197,[1]Tabelle2!$A:$I,B$2,FALSE),"")) -> Edlengut Siebenstein | C197: =IF(OR(B197="",B197="-"),"",IFERROR(VLOOKUP($A197,[1]Tabelle2!$A:$I,C$2,FALSE),"")) -> - | D197: =IF(OR(C197="",C197="-"),"",IFERROR(VLOOKUP($A197,[1]Tabelle2!$A:$I,D$2,FALSE),"")) ->  | E197: =IF(OR(D197="",D197="-"),"",IFERROR(VLOOKUP($A197,[1]Tabelle2!$A:$I,E$2,FALSE),"")) ->  | G197: =IFERROR(E197/F197,"") -> 
A198: Nor-III-12-E5 | B198: =IF(OR(A198="",A198="-"),"",IFERROR(VLOOKUP($A198,[1]Tabelle2!$A:$I,B$2,FALSE),"")) -> Edlengut Weizenfeld | C198: =IF(OR(B198="",B198="-"),"",IFERROR(VLOOKUP($A198,[1]Tabelle2!$A:$I,C$2,FALSE),"")) -> - | D198: =IF(OR(C198="",C198="-"),"",IFERROR(VLOOKUP($A198,[1]Tabelle2!$A:$I,D$2,FALSE),"")) ->  | E198: =IF(OR(D198="",D198="-"),"",IFERROR(VLOOKUP($A198,[1]Tabelle2!$A:$I,E$2,FALSE),"")) -> 
A199: Nor-III-12-E6 | B199: =IF(OR(A199="",A199="-"),"",IFERROR(VLOOKUP($A199,[1]Tabelle2!$A:$I,B$2,FALSE),"")) -> Motte Feldertrutz | C199: =IF(OR(B199="",B199="-"),"",IFERROR(VLOOKUP($A199,[1]Tabelle2!$A:$I,C$2,FALSE),"")) -> - | D199: =IF(OR(C199="",C199="-"),"",IFERROR(VLOOKUP($A199,[1]Tabelle2!$A:$I,D$2,FALSE),"")) ->  | E199: =IF(OR(D199="",D199="-"),"",IFERROR(VLOOKUP($A199,[1]Tabelle2!$A:$I,E$2,FALSE),"")) -> 
A200: Nor-III-13 | B200: =IF(OR(A200="",A200="-"),"",IFERROR(VLOOKUP($A200,[1]Tabelle2!$A:$I,B$2,FALSE),"")) -> Baronie Schweinsfold | C200: =IF(OR(B200="",B200="-"),"",IFERROR(VLOOKUP($A200,[1]Tabelle2!$A:$I,C$2,FALSE),"")) -> Baronin Selinde II von Herzogenfurt-Schweinsfold | D200: =IF(OR(C200="",C200="-"),"",IFERROR(VLOOKUP($A200,[1]Tabelle2!$A:$I,D$2,FALSE),"")) -> 9070 | E200: =IF(OR(D200="",D200="-"),"",IFERROR(VLOOKUP($A200,[1]Tabelle2!$A:$I,E$2,FALSE),"")) -> 0 | F200: 9070 | G200: 0
... 129 more rows

Sheet Modul1 (hidden)
